Cogmind - Beta 11.1 *** ADVENTURER MODE // 2022.05.01 @ 01:12:43 Player: Big Tortoise Result: Assimilated 0b10! Performance ------------- Evolutions (9) 4500 Regions Visited (29) 5800 Robots Destroyed (544) 2720 Value Destroyed (38729) 38729 Prototype IDs (111) 2220 Alien Tech Used (13) 2600 Bonus (28790) 28790 TOTAL SCORE: 85359 Bonus ------- High Alert Combat Kills 2987 Follower Combat Kills 4166 Entered Garrisons 1400 Used RIF Installer 3500 Network Hubs Disabled 400 A7 Reached Mainframe 300 Met R17 at Cetus 500 Hacked Protovariant 500 Scanned by Researcher 500 Destroyed MAIN.C Guards 500 Met MAIN.C 5000 Hacked MAIN.C 300 Destroyed MAIN.C Shell 5000 Used 0b10 Conduit 2000 Win 3000 Friendly Fire -1263 Cogmind --------- Core Integrity 1257/1600 Matter 117/300 Energy 350/350 System Corruption 11% Temperature Cool (3) Movement Flying (35) Location 0b10 Command Parts ------- > --- POWER (3) -------- (None) > --- PROPULSION (4) --- Cesium-ion Thruster > --- UTILITY (14) ----- (None) > --- WEAPON (4) ------- (None) > --- INVENTORY (5) ---- Biometal Heavy Treads High-powered Transdimensional Reconstructor Improved Potential Cannon Peak State ------------ > --- POWER ------------ Light Antimatter Reactor Quantum Reactor Reinforced Quantum Reactor > --- PROPULSION ------- Biometal Heavy Treads Advanced Heavy Siege Treads > --- UTILITY ---------- Large Storage Unit Experimental Target Analyzer Experimental Core Analyzer Improved Armor Integrity Analyzer SHELL Armor Graphene Brace Advanced Focal Shield Advanced Hacking Suite Advanced System Shield Relay Coupler [NC] > --- WEAPON ----------- Drained L-Cannon > --- INVENTORY -------- Experimental Cooling System Experimental Matter Compressor AEGIS Remote Shield Relay Coupler [Behemoth] Relay Coupler [Behemoth] Transdimensional Reconstructor High-powered Transdimensional Reconstructor High-powered Transdimensional Reconstructor Experimental Thermic Cannon Potential Cannon Improved Potential Cannon Advanced Remote Datajack [Rating: 215] Favorites ----------- Power Quantum Reactor Engine Reinforced Deuterium Engine Power Core Fission Core Reactor Quantum Reactor Propulsion Centrium Heavy Treads Treads Centrium Heavy Treads Leg Enhanced Biometal Leg Hover Unit Gravmag System Flight Unit Improved VTOL Module Utility Relay Coupler [NC] Device Advanced Heat Sink Storage Large Storage Unit Processor Experimental Target Analyzer Hackware Relay Coupler [NC] Protection SHELL Armor Artifact Spacefold Activator Weapon Heavy Hardcell Cannon Energy Gun Improved EM Shotgun Energy Cannon Experimental Thermic Cannon Ballistic Gun KE Penetrator Ballistic Cannon Heavy Hardcell Cannon Launcher Improved Proton Missile Launcher Special Weapon Advanced Remote Datajack Special Melee Weapon Improved Datajack Build | -11 -10 -9 -8 -8 -8 -8 -8 -6 -6 -6 -6 -5 -5 -5 -5 -5 -5 -5 -4 -4 -4 -4 -3 -3 -2 -2 -2 -1 -1 ------- Run | Scr Mat Mat Mat Gar Sto Gar Rec Fac Gar Fac Gar Fac Gar Fac Ext Cet Arc Hub Fac Gar Fac Gar Res Tes Res Qua Sec Acc Com Slots Evolved 18 | . . 2 2 . . . . 4 . . . 2 . . . . . . 2 . . . 2 . 2 . . 2 . Power 2 | . . . . . . . . 1 . . . . . . . . . . . . . . . . 1 . . . . Propulsion 2 | . . 1 . . . . . . . . . . . . . . . . 1 . . . . . . . . . . Utility 12 | . . 1 1 . . . . 3 . . . 2 . . . . . . . . . . 2 . 1 . . 2 . Weapon 2 | . . . 1 . . . . . . . . . . . . . . . 1 . . . . . . . . . . Parts Attached 416 | 6 3 14 9 12 13 17 1 41 5 4 11 3 8 8 3 8 5 15 13 13 17 13 17 21 8 21 51 15 41 Power 46 | 1 . 1 1 3 . 2 . 6 . 1 . . . 1 . 2 1 1 2 2 1 2 1 3 2 2 7 1 3 Engine 9 | 1 . 1 1 2 . . . 2 . . . . . 1 . 1 . . . . . . . . . . . . . Core 9 | . . . . 1 . 2 . 4 . 1 . . . . . . . . . . . 1 . . . . . . . Reactor 28 | . . . . . . . . . . . . . . . . 1 1 1 2 2 1 1 1 3 2 2 7 1 3 Propulsion 70 | 2 2 9 2 3 4 5 . 13 . . . . . 1 . 2 1 1 2 . 4 1 2 1 2 2 3 2 6 Treads 53 | . 2 6 2 3 4 5 . 3 . . . . . . . 2 1 1 2 . 4 1 2 1 2 2 3 2 5 Leg 8 | 2 . . . . . . . 5 . . . . . 1 . . . . . . . . . . . . . . . Wheel . | . . . . . . . . . . . . . . . . . . . . . . . . . . . . . . Hover 4 | . . . . . . . . 4 . . . . . . . . . . . . . . . . . . . . . Flight 5 | . . 3 . . . . . 1 . . . . . . . . . . . . . . . . . . . . 1 Utility 188 | 1 1 3 2 4 5 4 . 11 5 3 8 2 8 5 3 3 2 5 4 8 6 8 10 15 3 10 20 9 20 Device 80 | . . 2 . 2 3 2 . 4 . 2 . 1 . 1 1 1 . 1 3 2 3 3 4 7 1 4 13 4 16 Storage 12 | 1 . . . . 1 . . 1 . . . . . . . . . . . 2 1 . . 2 . 1 2 1 . Processor 11 | . 1 1 . . . . . 1 . . . . . . . . . . . . . . 1 1 . . 3 1 2 Hackware 46 | . . . 1 . 1 . . 4 4 1 7 1 7 3 1 1 1 1 1 2 . 2 2 . 1 1 . 2 2 Protection 36 | . . . 1 2 . 2 . 1 1 . 1 . 1 1 1 1 1 3 . 2 2 3 3 5 1 2 1 1 . Artifact 3 | . . . . . . . . . . . . . . . . . . . . . . . . . . 2 1 . . Weapon 112 | 2 . 1 4 2 4 6 1 11 . . 3 1 . 1 . 1 1 8 5 3 6 2 4 2 1 7 21 3 12 Energy Gun 10 | . . . . 1 1 5 . 2 . . . . . . . . . . . . 1 . . . . . . . . Energy Cannon 16 | . . . 1 1 1 . . 2 . . . . . . . . . . . . . . . 1 . 2 6 . 2 Ballistic Gun 31 | 2 . . 3 . 1 1 . 2 . . . . . . . . . 3 . 1 2 . . . . 1 8 2 5 Ballistic Cannon 22 | . . 1 . . . . . 2 . . . 1 . . . 1 . 2 1 1 1 1 2 1 . 3 3 . 2 Launcher 3 | . . . . . . . . 1 . . 1 . . . . . . . 1 . . . . . . . . . . Special Weapon 27 | . . . . . . . . 1 . . 2 . . 1 . . 1 3 3 1 2 1 2 . 1 1 4 1 3 Impact Weapon . | . . . . . . . . . . . . . . . . . . . . . . . . . . . . . . Slashing Weapon . | . . . . . . . . . . . . . . . . . . . . . . . . . . . . . . Piercing Weapon . | . . . . . . . . . . . . . . . . . . . . . . . . . . . . . . Special Melee Weapon 3 | . . . . . 1 . 1 1 . . . . . . . . . . . . . . . . . . . . . Unidentified Prototypes 23 | . . 1 1 . . . . 6 . . . . . . . . . . . . 1 . . 6 . 1 7 . . Corrupted Parts 2 | . . . . . . . . . . . . . . . . 1 . 1 . . . . . . . . . . . System Corruption 13 | . . . . . . . . . . . . . . . . 7 . 6 . . . . . . . . . . . Parts Lost 62 | . . 1 . 1 4 9 . 20 1 . 1 . . . 1 . . . 1 2 2 2 2 2 . 3 3 4 3 Power 8 | . . . . . . 2 . 3 . . . . . . . . . . . . . 1 . . . . 1 1 . Propulsion 11 | . . . . . . 2 . 8 . . . . . . . . . . . . . . . . . . 1 . . Utility 27 | . . . . . 1 2 . 4 1 . 1 . . . 1 . . . 1 1 2 1 1 2 . 3 1 3 2 Weapon 16 | . . 1 . 1 3 3 . 5 . . . . . . . . . . . 1 . . 1 . . . . . 1 Highest Loss Streak 16 | . . 1 . 1 3 8 . 16 1 . 1 . . . 1 . . . 1 1 1 2 1 1 . 2 2 4 2 To Critical Strikes . | . . . . . . . . . . . . . . . . . . . . . . . . . . . . . . Average Slot Usage (%) 83 | . 94 99 91 99 96 97 100 72 91 92 91 89 85 93 91 86 87 85 81 83 82 83 83 82 71 72 72 75 79 Engine 2 | . 14 10 9 8 9 2 . 3 6 6 6 5 5 5 5 1 . . . . . . . . . . . . . Core 1 | . . . . . . 6 9 5 6 5 6 5 5 5 5 5 2 . . . . 3 4 . . . . 1 . Reactor 5 | . . . . . . . . . . . . . . . . 3 8 9 7 10 9 6 4 8 8 7 8 9 11 Treads 10 | . 18 29 27 26 25 26 27 11 . . . . . . . 9 11 10 9 10 9 9 8 9 7 8 8 7 7 Leg 3 | . 9 . . . . . . 5 20 20 20 17 17 16 17 1 . . . . . . . . . . . . . Device 10 | . . 9 9 9 13 8 9 6 12 6 6 9 11 11 10 8 5 5 6 9 6 10 15 14 13 12 12 11 14 Storage 5 | . 14 11 9 9 9 9 9 4 6 6 6 5 5 5 5 5 5 5 5 1 5 5 4 4 4 6 7 4 3 Processor 2 | . 8 12 6 . . . . . . . . . . . . . . . . . . . 2 4 4 4 4 11 9 Hackware 17 | . . . 2 9 3 9 9 10 23 26 24 25 20 28 25 28 29 29 27 31 29 23 21 20 14 11 13 12 15 Protection 5 | . . . 2 9 9 8 9 4 1 6 6 5 5 5 5 6 10 9 3 4 5 6 6 3 6 7 3 4 3 Energy Gun 1 | . . . . 2 8 17 18 3 . . . . . . . . . . . . . . . . . . . . . Energy Cannon 2 | . . . 4 16 14 . . 3 . . . . . . . . . . . . . . . 1 4 3 4 4 4 Ballistic Gun 3 | . 28 17 13 8 1 7 . 1 . . . . . . . . . 1 9 7 2 . . . . . 2 3 3 Ballistic Cannon 4 | . . 4 7 . . . . 1 6 6 6 4 5 5 5 6 5 5 5 5 9 10 8 7 4 3 3 4 3 Special Weapon 2 | . . . . . . . . . 6 6 5 5 5 4 5 3 4 4 4 1 1 5 4 4 3 3 . . . Naked Turns 1 | . . . . . . . . . . . . . . . . . . . . . . . . . . . . . 1 Heaviest Build 172 | 12 12 19 26 42 57 54 37 71 70 72 78 77 77 77 76 91 96 99 90 88 90 106 120 141 149 149 172 155 163 Greatest Support 175 | 20 40 69 69 83 83 83 60 80 80 80 80 80 80 80 80 100 108 108 160 160 160 160 160 160 160 160 175 175 175 Greatest Overweight (x) 2 | . . 2 . . 1 . . 1 . . . . . . . . . 1 . . 1 1 1 . 1 . 1 . 1 Average Overweight (x) . | . . . . . . . . . . . . . . . . . . . . . . . . . . . . . . Largest Inventory Capacity 15 | 8 8 8 8 8 15 15 15 15 15 15 15 15 15 15 15 15 15 15 15 15 15 15 15 15 15 15 15 15 15 Average Capacity 13 | 5 8 8 8 8 14 15 15 13 15 15 15 15 15 15 15 15 15 15 15 7 15 15 15 15 15 15 15 15 14 Most Carried 15 | . 6 8 8 8 11 15 15 15 15 15 15 15 15 15 15 15 15 15 15 15 15 15 15 15 14 15 15 15 15 Average Carried 12 | . 4 6 7 7 9 11 11 11 13 15 14 14 13 14 14 13 14 14 14 5 14 10 13 12 13 13 13 14 14 Final Capacity 15 | 8 8 8 8 8 15 15 15 15 15 15 15 15 15 15 15 15 15 15 15 15 15 15 15 15 15 15 15 15 5 Final Carried 15 | . 6 7 7 8 11 15 12 15 15 15 15 14 15 15 14 15 15 14 15 15 14 15 12 14 13 12 15 15 5 Class Distribution -------------------- 29% | Botlord-Mutant 13% | Bothacker-Mutant 13% | Botlord-Gunner 8% | Bothacker-Tank 8% | Botlord-Tank 7% | Hacker-Tank 4% | Mutant Dominant Class ---------------- Mutant | -10/Materials Mutant | -9/Materials Gunner | -8/Materials Hacker-Tank | -8/Garrison Bothacker-Tank | -8/Storage Bothacker-Tank | -8/Garrison Commander-Mutant | -8/Recycling Bothacker-Mutant | -6/Factory Bothacker-Mutant | -6/Garrison Bothacker-Mutant | -6/Factory Bothacker-Mutant | -6/Garrison Botlord-Mutant | -5/Factory Botlord-Mutant | -5/Garrison Botlord-Mutant | -5/Factory Botlord-Mutant | -5/Extension Botlord-Mutant | -5/Cetus Botlord-Mutant | -5/Archives Botlord-Mutant | -5/Hub_04(d) Botlord-Mutant | -4/Factory Scavenger-Gunner | -4/Garrison Hacker-Tank | -4/Factory Botlord-Mutant | -4/Garrison Botlord-Tank | -3/Research Botlord-Gunner | -3/Testing Botlord-Gunner | -2/Research Botlord-Mutant | -2/Quarantine Bothacker-Mutant | -2/Section 7 Botlord-Gunner | -1/Access Botlord-Gunner | -1/Command Resources | -11 -10 -9 -8 -8 -8 -8 -8 -6 -6 -6 -6 -5 -5 -5 -5 -5 -5 -5 -4 -4 -4 -4 -3 -3 -2 -2 -2 -1 -1 ----------- Run | Scr Mat Mat Mat Gar Sto Gar Rec Fac Gar Fac Gar Fac Gar Fac Ext Cet Arc Hub Fac Gar Fac Gar Res Tes Res Qua Sec Acc Com Matter Collected 23598 | 192 68 640 476 363 202 236 10 555 518 102 472 120 695 177 442 226 85 502 1139 1033 665 1300 1126 3281 310 2471 3174 1124 1894 Remotely 99 | . . . . . . . . . . . . . . . . . . . . . . . . . . . . 99 . Salvage Created 24393 | . 48 888 584 1031 1051 805 369 1082 484 . 288 95 357 254 308 104 . 352 825 1273 416 631 944 2056 617 2795 2908 1354 2474 Parts 1016 | . 2 57 21 54 44 41 12 59 24 . 19 2 15 16 11 1 . 16 32 48 19 30 55 78 15 98 88 58 101 Haulers Intercepted 6 | . 1 2 1 . 1 . . 1 . . . . . . . . . . . . . . . . . . . . . Recyclers Shooed 3 | . . . . . . . 2 . . . . . . . . . . . 1 . . . . . . . . . . Parts Field Recycled 3 | . . . . . . . . . . . . . . . . . . . . . . . 3 . . . . . . Retrieved Matter 49 | . . . . . . . . . . . . . . . . . . . . . . . 49 . . . . . . Parts Self-Destructed . | . . . . . . . . . . . . . . . . . . . . . . . . . . . . . . Prevented . | . . . . . . . . . . . . . . . . . . . . . . . . . . . . . . Kills | -11 -10 -9 -8 -8 -8 -8 -8 -6 -6 -6 -6 -5 -5 -5 -5 -5 -5 -5 -4 -4 -4 -4 -3 -3 -2 -2 -2 -1 -1 ------- Run | Scr Mat Mat Mat Gar Sto Gar Rec Fac Gar Fac Gar Fac Gar Fac Ext Cet Arc Hub Fac Gar Fac Gar Res Tes Res Qua Sec Acc Com Combat Hostiles Destroyed 500 | . . 21 15 22 18 19 . 19 19 . 7 1 10 6 6 2 . 9 16 30 15 17 23 45 12 51 57 19 41 Guns 100 | . . 15 4 10 4 17 . 10 . . . . . . . . . . 7 12 2 . . . . 1 12 5 1 Cannons 369 | . . 6 9 11 11 . . 9 19 . 5 1 10 6 6 2 . 9 9 18 11 17 23 43 10 48 37 14 35 AOE 13 | . . . . 1 . 2 . . . . 2 . . . . . . . . . 2 . . . . 2 1 . 3 Classes Destroyed 29 | . 1 7 1 1 . 1 1 3 . . 1 . . . . . . . . . . . 1 2 . 4 5 . 1 Worker 8 | . . 1 . . . . . . . . . . . . . . . 2 1 . 1 . . 1 . 1 . 1 . Builder 12 | . . 1 . . 1 . . 1 . . . . . . . . . 1 . . . . 2 2 . 1 1 2 . Tunneler 1 | . . . . . . . . . . . . . . . . . . . . . . . 1 . . . . . . Hauler 6 | . 1 2 1 . 1 . . 1 . . . . . . . . . . . . . . . . . . . . . Recycler 5 | . . . . . . . 3 1 . . . . . . . . . . . . . . . . . . . . 1 Carrier 2 | . . . . . . . . . . . . . . . . . . . . . . . . . . . 1 1 . Mechanic 1 | . . . . . . . . . . . . . . . . . . . . . . . . . . . 1 . . Operator 3 | . . . . . . . . . . . . . . . . . . . . . . . . . . 1 1 1 . Watcher 6 | . . 1 . . . . . . . . 1 . 1 . . . . . . . 1 . . . . 1 . 1 . Swarmer 82 | . . 6 3 4 1 3 . 7 10 . . . 3 . 1 . . 1 . 9 4 4 5 2 5 4 . 2 8 Cutter 5 | . . . . . . 3 . . . . 2 . . . . . . . . . . . . . . . . . . Saboteur 1 | . . . . . . . . . . . . . . . . . . . . . . . . . . . . . 1 Grunt 151 | . . 9 9 13 7 7 . 4 3 . 3 2 2 4 3 . . 2 2 11 1 9 6 18 1 17 7 7 4 Brawler 10 | . . . . . . . . . . . 1 . . . . . . . 2 2 . . . 2 . . 2 1 . Duelist 14 | . . 1 1 1 2 1 . 1 . . . . 1 . . . . . 2 . . . . 2 . . . 2 . Protector 1 | . . . . . . . . . . . . . . . . . . . . . . . . . . 1 . . . Researcher 6 | . . . . . . . . . . . . . . . . . . . . . . . . 5 . 1 . . . Sentry 49 | . . 5 1 3 7 4 . . 6 . 1 . 2 . 2 . . 2 . 2 1 2 . . . . 8 2 1 Demolisher 2 | . . . . . . . . . . . . . . . . . . . . . . . . . . . 2 . . Specialist 11 | . . . . . . . . 1 . . . . . . . . . . . 4 . . . 3 . 3 . . . Hunter 59 | . . . 1 . 1 1 . 3 2 . . . 2 . 1 . . 2 2 . 4 . 5 6 2 8 10 2 7 Programmer 84 | . . . . . . . . 2 . . . . . 2 . . . 2 8 2 5 2 7 11 3 16 8 1 15 Heavy 2 | . . . . . . . . 1 . . . . . . . . . . . . . . . . . . 1 . . Q-Series 4 | . . . . . . . . . . . . . . . . . . . . . . . . . . 1 1 2 . Behemoth 3 | . . . . 1 . . . . . . . . . . . . . . . . . . . . 1 . 1 . . Cetus Guard 2 | . . . . . . . . . . . . . . . . 2 . . . . . . . . . . . . . S7 Guard 2 | . . . . . . . . . . . . . . . . . . . . . . . . . . . 2 . . M Guard 2 | . . . . . . . . . . . . . . . . . . . . . . . . . . . . . 2 Combat Programmer 2 | . . . . . . . . . . . . . . . . . . . . . . . . . . . . . 2 Investigator 1 | . . . . . . . . . . . . . . . . . . . . . . . . 1 . . . . . Executioner 2 | . . . . . . . . . . . . . . . . . . . . . . . . . . . 2 . . Alpha 7 2 | . . . . . . . . . . . . . . . . . . . . . . . . . . . 2 . . Fortress 1 | . . . . . . . . . . . . . . . . . . . . . . . . . . 1 . . . Protovariant D 1 | . . . . . . . . . . . . . . . . . . . . . . . . 1 . . . . . Assembled 11 | . . . . . . . . . . . . . . . . . . . . . . . . . . . 11 . . Best Kill Streak 14 | . 1 6 6 3 3 5 2 4 7 . 2 1 6 2 2 1 . 5 4 10 10 4 7 14 5 7 14 8 5 Combat Bots Only 14 | . . 5 6 3 3 5 . 4 7 . 2 1 6 2 2 1 . 5 4 10 8 4 7 14 5 6 14 5 5 Max Kills in Single Turn 3 | . 1 2 1 1 2 2 1 2 1 . 2 1 1 1 1 1 . 2 2 2 2 1 2 1 1 2 3 1 2 Gunslinging 1 | . . 1 . . . 1 . 1 . . . . . . . . . . . . . . . . . . . . . Exploded 2 | . . . . 1 . 2 . . . . 2 . . . . . . . . . 1 . . . . 1 1 . 1 Melee . | . . . . . . . . . . . . . . . . . . . . . . . . . . . . . . Uniques/NPCs Destroyed 1 | . . . . . . . . . . . . . . . . . . . . . . . . . . . . . 1 MAIN.C Shell (-1/Command) Combat | -11 -10 -9 -8 -8 -8 -8 -8 -6 -6 -6 -6 -5 -5 -5 -5 -5 -5 -5 -4 -4 -4 -4 -3 -3 -2 -2 -2 -1 -1 -------- Run | Scr Mat Mat Mat Gar Sto Gar Rec Fac Gar Fac Gar Fac Gar Fac Ext Cet Arc Hub Fac Gar Fac Gar Res Tes Res Qua Sec Acc Com Damage Taken 33080 | . 20 606 491 956 1065 1442 34 2485 481 20 230 85 513 113 326 44 95 1143 299 2157 1111 944 1539 1931 471 3979 5906 1138 3456 Core 2418 | . . 79 48 103 114 129 . 554 50 . 8 20 20 15 . . 17 64 42 175 65 56 17 128 . 112 259 20 323 Absorbed by Shields 10911 | . . . . . . . 10 174 . . . . . . 26 . . . . . . 436 399 1704 452 2994 3048 . 1668 Reduced by Siege Mode 1632 | . . . . . . . . . . . . . . . . . . . . 164 42 52 79 107 3 412 507 27 239 Redirected to Shielding 167 | . . . . . . . . . . . . . . . . . . . . . . . . . 28 139 . . . Regen/Repaired (Parts) 14021 | . . . . . 541 . . . . . . . . 630 . . . . 825 . 1767 . 1163 15 339 1995 4021 980 1745 Core Remaining (%) 74 | 100 100 80 . . . . 28 . . . 28 . . . . . . 86 . . . 70 . 88 . . 82 . 78 Volleys Fired 1717 | . 4 66 36 60 58 43 5 64 63 1 40 14 76 18 64 9 4 58 37 74 30 41 62 148 24 178 264 49 127 Largest 3 | . 2 2 3 3 3 3 2 2 1 1 2 1 1 1 1 2 1 2 3 3 3 2 2 2 2 3 3 3 3 Hottest 353 | . 40 59 127 186 186 146 110 146 80 5 126 80 80 80 80 146 80 146 134 148 206 146 146 200 200 233 353 231 351 Shots Fired 3186 | . 8 132 101 178 140 117 10 87 63 1 41 14 76 18 64 11 4 74 98 130 68 76 111 247 45 357 474 127 314 Gun 897 | . 8 106 52 77 49 117 10 40 . . . . . . . . . 11 61 64 8 . . . . 53 112 39 90 Cannon 2075 | . . 26 49 101 91 . . 41 53 . 17 4 42 10 30 10 1 53 31 58 59 73 104 218 44 299 357 87 217 Launcher 6 | . . . . . . . . 4 . . 1 . . . . . . . 1 . . . . . . . . . . Special 208 | . . . . . . . . 2 10 1 23 10 34 8 34 1 3 10 5 8 1 3 7 29 1 5 5 1 7 Kinetic 1995 | . 8 132 79 64 10 32 . 40 53 . 17 4 42 10 30 10 1 64 92 122 66 73 104 197 21 199 255 80 190 Thermal 885 | . . . 22 101 91 52 5 40 . . . . . . . . . . . . . . . 21 23 153 214 46 117 Explosive 1 | . . . . . . . . . . . . . . . . . . . 1 . . . . . . . . . . Electromagnetic 97 | . . . . 13 39 33 5 5 . . 1 . . . . . . . . . 1 . . . . . . . . Robot Hit Streak 51 | . 7 23 36 51 27 23 10 14 26 3 7 6 14 12 22 9 13 25 22 21 24 14 10 26 11 40 46 25 36 Robot Miss Streak 4 | . . 2 2 3 3 3 1 3 1 . 2 2 2 1 1 1 . 2 2 2 1 3 2 3 3 3 2 2 4 Penetration Max 1 | . . . . 1 . . . . . . . . . . . . . 1 1 1 1 . . . . . 1 1 1 Secondary Targets 12 | . . 3 . . . 8 . 1 . . . . . . . . . . . . . . . . . . . . . Max Gunslinging Chain 2 | . . 1 . . . 2 . 1 . . . . . . . . . . . . . . . . . . . . . Shots Hit Robots 2411 | . 7 98 83 129 103 85 51 76 52 1 26 9 53 15 45 10 4 46 69 88 57 49 76 190 36 294 339 94 226 Core Hits 906 | . 2 41 31 42 31 41 8 37 15 . 6 2 9 4 6 2 . 19 31 39 21 20 25 62 11 104 144 44 109 Critical Kills 23 | . . 1 3 . 3 . . 1 . . . . . . . . . . 1 3 . . . . . 1 7 1 2 Critical Parts Destroyed 29 | . . . . 1 . . . . . . . . . . . . . . 7 6 . . . . . 3 6 3 3 Critical Strikes 314 | . . 2 4 1 3 1 1 1 2 . . 1 4 1 2 1 . 4 14 12 5 4 14 41 16 80 81 8 11 Burn 117 | . . . . . . 1 1 . . . . . . . . . . . . . . . . 10 11 55 39 . . Meltdown 9 | . . . 2 . 3 . . . . . . . . . . . . . . . . . . . . . 2 . 2 Destroy 50 | . . 1 1 1 . . . 1 . . . . . . . . . . 9 10 . . . . . 6 14 4 3 Blast 138 | . . 1 1 . . . . . 2 . . 1 4 1 2 1 . 4 5 2 5 4 14 31 5 19 26 4 6 Melee Attacks 57 | . . . . . 6 . 41 10 . . . . . . . . . . . . . . . . . . . . . Impact . | . . . . . . . . . . . . . . . . . . . . . . . . . . . . . . Slashing . | . . . . . . . . . . . . . . . . . . . . . . . . . . . . . . Piercing . | . . . . . . . . . . . . . . . . . . . . . . . . . . . . . . Sneak Attacks 45 | . . . . . 5 . 36 4 . . . . . . . . . . . . . . . . . . . . . Combat Hostiles . | . . . . . . . . . . . . . . . . . . . . . . . . . . . . . . Follow-up Attacks . | . . . . . . . . . . . . . . . . . . . . . . . . . . . . . . Damage Inflicted 104836 | . 79 1498 1436 2610 1901 1480 310 2230 3377 . 1025 271 2351 893 1212 573 76 2858 2687 5142 3450 2720 4117 10699 2463 15899 17308 4661 11510 Guns 14924 | . 79 1069 575 1037 566 1369 183 688 . . . . . . . . . 210 1557 1684 159 . . . . 912 2159 801 1876 Cannons 86081 | . . 429 861 1477 1335 . . 1134 3377 . 933 271 2351 863 1212 573 76 2044 1130 3458 2726 2720 4117 10602 2463 14477 14457 3860 9135 Explosions 3762 | . . . . 96 . 111 127 408 . . 92 . . . . . . 604 . . 559 . . 83 . 510 673 . 499 Melee . | . . . . . . . . . . . . . . . . . . . . . . . . . . . . . . Ramming 69 | . . . . . . . . . . . . . . 30 . . . . . . 6 . . 14 . . 19 . . Kinetic 79085 | . 79 1498 1005 876 148 247 . 998 3377 . 933 271 2351 863 1212 573 76 2254 2687 5142 2881 2720 4117 10091 1698 11344 10941 3218 7485 Thermal 23306 | . . . 431 1573 1335 682 206 807 . . 92 . . . . . . 109 . . 559 . . 511 765 4420 6348 1443 4025 Explosive 218 | . . . . . . . . . . . . . . . . . . . . . . . . 83 . 135 . . . Electromagnetic 2158 | . . . . 161 418 551 104 425 . . . . . . . . . 495 . . 4 . . . . . . . . Impact . | . . . . . . . . . . . . . . . . . . . . . . . . . . . . . . Slashing . | . . . . . . . . . . . . . . . . . . . . . . . . . . . . . . Piercing . | . . . . . . . . . . . . . . . . . . . . . . . . . . . . . . Highest Corruption 21 | . . . . . . . . 2 . . . . . 1 . 7 2 18 1 2 5 10 . 9 1 13 21 9 17 Average Corruption 7 | . . . . . . . . 1 . . . . . 1 . 4 2 2 1 1 2 8 . 4 1 5 18 8 9 Corruption Purged 27 | . . . . . . . . 3 . . . . . 1 . 5 . . . . . . . . . . . . 18 Corruption Blocked 40 | . . . . . . . . . . . . . . . . . . . . . . . . . . 20 20 . . Effects 497 | . . . . . . . . 6 . . . . . 2 . 12 5 13 1 16 14 55 . 37 3 62 181 29 61 Message Errors 120 | . . . . . . . . 2 . . . . . . . 3 . . 1 3 1 11 . 8 1 19 51 6 14 Matter Fused 100 | . . . . . . . . . . . . . . . . 2 1 2 . 3 4 11 . 5 1 11 40 6 14 Heat Flow Errors 63 | . . . . . . . . 2 . . . . . 1 . 3 1 2 . 3 3 5 . 5 . 7 17 6 8 Energy Discharges 54 | . . . . . . . . . . . . . . . . 2 1 1 . 3 1 12 . 1 . 9 20 2 2 Parts Rejected 15 | . . . . . . . . . . . . . . . . . . 1 . . 2 1 . 2 . 2 5 1 1 Data Loss (minor) 55 | . . . . . . . . . . . . . . 1 . 2 1 5 . 1 . 7 . 7 1 6 13 2 9 Data Loss (major) 20 | . . . . . . . . 1 . . . . . . . . 1 . . . 1 . . 1 . 4 6 1 5 Misfires 23 | . . . . . . . . 1 . . . . . . . . . 1 . 1 1 5 . 2 . 2 6 1 3 Alerts 13 | . . . . . . . . . . . . . . . . . . 1 . . 1 2 . 2 . . 5 1 1 Misdirections 6 | . . . . . . . . . . . . . . . . . . . . . . 1 . . . . 4 . 1 Weapon Failures 28 | . . . . . . . . . . . . . . . . . . . . 2 . . . 4 . 2 14 3 3 Overload Shots . | . . . . . . . . . . . . . . . . . . . . . . . . . . . . . . Overflow Damage 7795 | . . . . . 11 19 13 51 452 . 136 3 404 140 115 49 . 206 24 361 572 144 407 996 485 1349 953 447 458 Projectiles 7296 | . . . . . 11 . . 51 452 . 111 3 404 125 115 49 . 144 24 361 430 144 407 996 485 1265 883 447 389 Explosions 484 | . . . . . . 19 13 . . . 25 . . . . . . 62 . . 142 . . . . 84 70 . 69 Melee 15 | . . . . . . . . . . . . . . 15 . . . . . . . . . . . . . . . Knockbacks 292 | . . 1 6 . . . . 1 6 . 3 1 3 3 3 1 . 8 7 16 11 9 22 73 5 41 30 15 27 Impact . | . . . . . . . . . . . . . . . . . . . . . . . . . . . . . . Kinetic 274 | . . 1 5 . . . . 1 5 . 3 1 3 2 3 1 . 7 6 13 11 8 21 70 5 38 29 14 27 Secondary 18 | . . . 1 . . . . . 1 . . . . 1 . . . 1 1 3 . 1 1 3 . 3 1 1 . Self-Inflicted Damage 531 | . . . . . . 92 31 3 . . . . . . . . . 141 . . 151 . . 90 . . 23 . . Shots 11 | . . . . . . 2 1 1 . . . . . . . . . 2 . . 3 . . 1 . . 1 . . Rammed 5 | . 1 . . . . . . . . . . . . . . . . . . . 1 . . 1 . . 2 . . Targets Rammed 7 | . 1 . . . . . . 1 . . . . . 1 . . . . . . 1 . . 1 . . 2 . . Kicked 2 | . . . . . . . . 1 . . . . . 1 . . . . . . . . . . . . . . . Crushed . | . . . . . . . . . . . . . . . . . . . . . . . . . . . . . . Highest Temperature 427 | . . 8 214 345 380 160 15 135 144 . 32 12 36 240 18 180 148 169 333 427 233 226 72 322 126 205 424 156 245 Average Temperature 76 | . . 7 49 88 119 62 4 39 38 . 10 6 8 77 7 61 61 35 64 96 55 50 19 53 45 61 128 83 103 Received Heat Transfer 5066 | . . 384 288 432 486 531 21 244 117 12 87 . 111 9 99 . 9 189 9 518 27 122 58 160 24 315 496 99 219 Effects 21 | . . . 2 . 4 . . . . . . . . . . . . . . 3 . . . . . . 12 . . Shutdowns 7 | . . . . . 1 . . . . . . . . . . . . . . 2 . . . . . . 4 . . Energy Bleed 4 | . . . . . 2 . . . . . . . . . . . . . . 1 . . . . . . 1 . . Interference 8 | . . . 2 . . . . . . . . . . . . . . . . . . . . . . . 6 . . Matter Decay 1 | . . . . . 1 . . . . . . . . . . . . . . . . . . . . . . . . Damage (minor) 1 | . . . . . . . . . . . . . . . . . . . . . . . . . . . 1 . . Siege Activations 67 | . . . . . . . . . . . . . . . . . . . . 4 7 5 4 9 4 9 15 2 8 Total Turns 1572 | . . . . . . . . . . . . . . . . . . . . 76 93 64 65 171 88 320 370 45 280 Longest Duration 190 | . . . . . . . . . . . . . . . . . . . . 33 25 22 21 39 46 190 83 30 95 Robots Corrupted 1 | . . . . . . . . . . . . . . . . . . 1 . . . . . . . . . . . Combat Hostiles . | . . . . . . . . . . . . . . . . . . . . . . . . . . . . . . Parts Fried 7 | . . . . . 1 3 . . 2 . . . . . . . . 1 . . . . . . . . . . . Impact Corruptions 8 | . . . . . . . . . 1 . . . . 1 . . . . . . . . 1 3 . 2 . . . Robots Melted 20 | . . . 2 . 3 . . . . . . . . . . . . . . . . . . 2 2 1 8 . 2 Combat Hostiles 17 | . . . 2 . 3 . . . . . . . . . . . . . . . . . . 1 2 . 7 . 2 Parts Melted 92 | . . . 2 2 9 4 . 2 . . . . . 1 . 1 . . . . 1 . . 4 8 19 33 . 6 Heat Transferred 50064 | . . . 777 2727 2405 1610 359 1239 . . 100 . . . . . . 100 . . 400 . . 2720 3280 15028 15287 1295 2737 Parts Sabotaged 3 | . . . . . . . . 2 . . . . . . . . . . . . . . . . . . . . 1 Parts Stolen . | . . . . . . . . . . . . . . . . . . . . . . . . . . . . . . Parts Stripped . | . . . . . . . . . . . . . . . . . . . . . . . . . . . . . . Power Chain Reactions 7 | . . . . 2 . 2 1 . . . 1 . . . . . . 1 . . . . . . . . . . . Missiles Intercepted 15 | . . . . . . . . . . . . . . . . . . . . . . . . . . . . . 15 Alert | -11 -10 -9 -8 -8 -8 -8 -8 -6 -6 -6 -6 -5 -5 -5 -5 -5 -5 -5 -4 -4 -4 -4 -3 -3 -2 -2 -2 -1 -1 ------- Run | Scr Mat Mat Mat Gar Sto Gar Rec Fac Gar Fac Gar Fac Gar Fac Ext Cet Arc Hub Fac Gar Fac Gar Res Tes Res Qua Sec Acc Com Peak Influence 1171 | . 57 500 514 1119 766 738 409 1110 1171 567 733 447 790 505 427 496 108 478 314 913 460 857 626 486 301 535 478 448 591 Initial 974 | . . . 180 292 469 307 283 974 493 532 349 333 275 359 124 168 76 26 201 70 415 234 419 61 140 50 . . 176 Average 347 | . 25 195 286 710 594 599 301 878 936 541 595 364 542 370 298 323 88 106 137 639 270 591 273 183 204 172 105 215 274 Maximum Alert Level 4 | . . 2 2 4 3 3 2 4 4 2 3 2 3 2 2 2 . 2 1 3 2 3 2 2 1 2 2 2 2 Low Security (%) 37 | 100 100 54 37 . . . . . . . . . . . 18 17 100 85 63 13 41 . 49 57 50 68 81 26 39 Level 1 25 | . . 28 33 9 . 10 91 . . . 11 83 26 63 77 67 . 9 36 10 34 17 11 35 49 14 14 70 43 Level 2 22 | . . 16 29 43 84 64 8 13 16 100 59 16 45 36 4 15 . 5 . 16 24 48 38 7 . 17 3 3 17 Level 3 13 | . . . . 40 15 24 . 85 54 . 28 . 28 . . . . . . 60 . 34 . . . . . . . Level 4 . | . . . . 6 . . . 1 28 . . . . . . . . . . . . . . . . . . . . Level 5 . | . . . . . . . . . . . . . . . . . . . . . . . . . . . . . . High Security . | . . . . . . . . . . . . . . . . . . . . . . . . . . . . . . Max Security . | . . . . . . . . . . . . . . . . . . . . . . . . . . . . . . Squads Dispatched 91 | . . 1 5 . 1 . . 4 . 1 . 3 . 2 1 . . 3 7 . 3 . 4 18 1 14 10 6 7 Investigation 11 | . . . 1 . . . . 1 . 1 . 1 . 1 . . . . 2 . 1 . 1 2 . . . . . Extermination 36 | . . . . . . . . 1 . . . 1 . 1 . . . 1 2 . 2 . 2 5 1 8 6 1 5 Reinforcement 27 | . . 1 2 . . . . 2 . . . . . . 1 . . 1 . . . . 1 8 . 5 3 2 1 Assault 9 | . . . . . 1 . . . . . . . . . . . . 1 . . . . . 2 . 1 1 2 1 Garrison 8 | . . . 2 . . . . . . . . 1 . . . . . . 3 . . . . 1 . . . 1 . Intercept . | . . . . . . . . . . . . . . . . . . . . . . . . . . . . . . Searches Triggered 2 | . . . . . . . . 2 . . . . . . . . . . . . . . . . . . . . . Construction Impeded 2 | . . . . . . . . 1 . . . . . . . . . . . . . . . . . 1 . . . Haulers Reinforced 4 | . . . . . . . . 1 . . . . . . . . . 1 . . . . 1 . . . . 1 . Active Scanning Responses . | . . . . . . . . . . . . . . . . . . . . . . . . . . . . . . Cargo Convoy Interrupts 2 | . . . . . . . . 1 . . . . . . . . . . . . . . 1 . . . . . . Alert ID Control Effect 9 | . . . . . . . . . . . . . . . . . . . . . . 5 3 . 1 . . . . Stealth | -11 -10 -9 -8 -8 -8 -8 -8 -6 -6 -6 -6 -5 -5 -5 -5 -5 -5 -5 -4 -4 -4 -4 -3 -3 -2 -2 -2 -1 -1 --------- Run | Scr Mat Mat Mat Gar Sto Gar Rec Fac Gar Fac Gar Fac Gar Fac Ext Cet Arc Hub Fac Gar Fac Gar Res Tes Res Qua Sec Acc Com Distress Signals 11 | . . 1 . . 3 . . . . . . . . . . . . 3 1 . . . . 1 . 1 1 . . Communications Jammed 1138 | . . . . . . . . 124 . . . 5 . . 91 362 . 19 1 . 55 . 39 54 17 162 158 49 2 Distress Signals 1136 | . . . . . . . . 123 . . . 5 . . 91 362 . 19 1 . 55 . 38 54 17 162 158 49 2 Times Spotted 873 | . 2 30 18 27 27 20 7 45 21 1 24 10 30 17 24 22 4 28 26 40 28 27 35 79 17 73 92 26 73 Peak Tracking Total 48 | . 1 5 5 5 5 6 2 9 5 1 4 6 6 4 11 5 2 6 4 6 5 4 5 7 5 8 9 5 48 Tactical Retreats 37 | . . 2 . 7 1 . . 1 . . . . . . . 1 . 1 1 1 1 1 . 2 1 6 3 . 8 Traps | -11 -10 -9 -8 -8 -8 -8 -8 -6 -6 -6 -6 -5 -5 -5 -5 -5 -5 -5 -4 -4 -4 -4 -3 -3 -2 -2 -2 -1 -1 ------- Run | Scr Mat Mat Mat Gar Sto Gar Rec Fac Gar Fac Gar Fac Gar Fac Ext Cet Arc Hub Fac Gar Fac Gar Res Tes Res Qua Sec Acc Com Traps Triggered 27 | . 1 . . 3 1 . . 3 2 1 1 . 1 . 1 . . 1 . 2 2 1 1 . . 2 1 1 2 Indirectly 1 | . . . . . . . . . . . 1 . . . . . . . . . . . . . . . . . . Trap Hack Attempts . | . . . . . . . . . . . . . . . . . . . . . . . . . . . . . . Triggered . | . . . . . . . . . . . . . . . . . . . . . . . . . . . . . . Disarmed 3 | . . . . . . . . . . . . . . . 2 . . . . . . . . . . . . . 1 Reprogrammed 10 | . . . . . . . . . . . . . . 4 . . . . 6 . . . . . . . . . . Reused 1 | . . . . . . . . . . . . . . . . . . . 1 . . . . . . . . . . Traps Extracted . | . . . . . . . . . . . . . . . . . . . . . . . . . . . . . . Installed . | . . . . . . . . . . . . . . . . . . . . . . . . . . . . . . Triggered 1 | . . . . . . . . . . . . . . . . . . . 1 . . . . . . . . . . Machines | -11 -10 -9 -8 -8 -8 -8 -8 -6 -6 -6 -6 -5 -5 -5 -5 -5 -5 -5 -4 -4 -4 -4 -3 -3 -2 -2 -2 -1 -1 ---------- Run | Scr Mat Mat Mat Gar Sto Gar Rec Fac Gar Fac Gar Fac Gar Fac Ext Cet Arc Hub Fac Gar Fac Gar Res Tes Res Qua Sec Acc Com Machines Disabled 116 | . . . 2 3 2 2 . 5 3 . 3 . 6 1 2 1 1 11 1 6 13 7 5 11 1 8 14 3 5 Max in Single Turn 9 | . . . 1 1 1 1 . 1 1 . 1 . 2 . 1 . . 7 . 2 9 2 1 1 1 1 1 1 1 Garrison Access 5 | . . . . . . . . . . . . . . . . . . 1 . . . . . 1 . . 1 2 . Garrison Relay 23 | . . . . 3 . 2 . . 3 . 3 . 4 . . . . . . 4 . 4 . . . . . . . Phase Generator 3 | . . . . . . . . . . . . . 1 . . . . . . 1 . 1 . . . . . . . Network Hub 2 | . . . . . . . . . . . . . . . . . . 2 . . . . . . . . . . . Machines Sabotaged . | . . . . . . . . . . . . . . . . . . . . . . . . . . . . . . Garrisons Compromised . | . . . . . . . . . . . . . . . . . . . . . . . . . . . . . . Overloaded Fab Kills . | . . . . . . . . . . . . . . . . . . . . . . . . . . . . . . Hacking | -11 -10 -9 -8 -8 -8 -8 -8 -6 -6 -6 -6 -5 -5 -5 -5 -5 -5 -5 -4 -4 -4 -4 -3 -3 -2 -2 -2 -1 -1 --------- Run | Scr Mat Mat Mat Gar Sto Gar Rec Fac Gar Fac Gar Fac Gar Fac Ext Cet Arc Hub Fac Gar Fac Gar Res Tes Res Qua Sec Acc Com Machines Accessed 140 | . 3 5 3 . 9 . 1 3 . 1 . 4 . 8 13 3 . 7 12 . 6 . 5 7 3 15 16 8 8 Terminals 102 | . 3 4 2 . 5 . 1 1 . . . 1 . 6 12 3 . 6 7 . 2 . 2 5 2 12 14 7 7 Fabricators 4 | . . . . . . . . . . . . 1 . . . . . . 2 . . . 1 . . . . . . Repair Stations 17 | . . . . . 2 . . 1 . . . 1 . 1 . . . . 1 . 2 . 2 1 1 2 1 1 1 Recycling Units 3 | . . . . . 1 . . . . . . . . . 1 . . . 1 . . . . . . . . . . Scanalyzers 6 | . . 1 . . . . . . . . . . . 1 . . . . . . 1 . . 1 . 1 1 . . Garrison Access 8 | . . . 1 . 1 . . 1 . 1 . 1 . . . . . 1 1 . 1 . . . . . . . . Total Hacks 680 | . 14 23 10 . 28 . 3 5 . 3 . 13 . 32 37 8 . 33 75 . 54 . 36 50 13 78 76 42 47 Successful 383 | . 10 13 9 . 20 . 1 3 . 2 . 6 . 24 29 6 . 16 40 . 24 . 20 28 11 37 41 21 22 Failed 297 | . 4 10 1 . 8 . 2 2 . 1 . 7 . 8 8 2 . 17 35 . 30 . 16 22 2 41 35 21 25 Catastrophic 28 | . 1 . 1 . 1 . . 1 . . . 1 . 2 . . . . 4 . 3 . . . . 4 3 3 4 Database Lockouts . | . . . . . . . . . . . . . . . . . . . . . . . . . . . . . . Manual 209 | . 2 9 3 . 7 . . 1 . 2 . 3 . 6 17 2 1 15 16 . 5 . 10 6 4 34 24 19 23 Terminals 497 | . 14 17 7 . 14 . 3 2 . . . 2 . 23 34 8 . 32 48 . 29 . 13 36 9 60 67 39 40 Fabricators 19 | . . . . . . . . . . . . 2 . . . . . . 9 . . . 8 . . . . . . Repair Stations 98 | . . . . . 10 . . 1 . . . 6 . 6 . . . . 6 . 16 . 15 6 4 13 5 3 7 Recycling Units 12 | . . . . . 1 . . . . . . . . . 3 . . . 8 . . . . . . . . . . Scanalyzers 32 | . . 6 . . . . . . . . . . . 3 . . . . . . 6 . . 8 . 5 4 . . Garrison Access 22 | . . . 3 . 3 . . 2 . 3 . 3 . . . . . 1 4 . 3 . . . . . . . . Terminal Hacks 224 | . 10 5 4 . 7 . 1 . . . . . . 14 25 6 . 14 22 . 8 . 6 19 5 21 28 16 13 Record 21 | . 3 . . . . . . . . . . . . . . 5 . . 3 . . . 1 . . 4 1 3 1 Part Schematic 12 | . . . . . . . . . . . . . . 1 1 . . 1 2 . 1 . . 3 . . 1 1 1 Robot Schematic 2 | . . . . . . . . . . . . . . 1 . . . . 1 . . . . . . . . . . Robot Analysis 21 | . . . . . . . . . . . . . . . 7 . . 5 4 . . . . 1 . 2 1 1 . Prototype ID Bank 20 | . 2 1 1 . . . 1 . . . . . . 2 1 . . . 2 . 1 . . 1 . 2 2 1 3 Open Door 19 | . . . . . 1 . . . . . . . . 1 7 1 . . . . . . . 1 . . 4 3 1 Open DSF 1 | . . . . . . . . . . . . . . . . . . . 1 . . . . . . . . . . Level Access Points 5 | . . . . . . . . . . . . . . . . . . 2 . . . . . 1 . 1 1 . . Branch Access Points 8 | . . 1 . . . . . . . . . . . 1 . . . . 1 . 1 . 1 . 2 . . 1 . Emergency Access Points 3 | . . . . . . . . . . . . . . . . . . 1 . . . . . 1 . . . . 1 Machine Index 8 | . . . . . . . . . . . . . . 1 1 . . . 1 . 1 . . 1 . 1 . 1 1 Terminal Index 4 | . . . . . . . . . . . . . . . . . . . 1 . . . 1 . . 1 1 . . Fabricator Index 3 | . . . . . 1 . . . . . . . . 1 . . . . . . . . . . 1 . . . . Repair Station Index 2 | . . . . . . . . . . . . . . . . . . . . . . . 1 . . . 1 . . Recycling Unit Index 1 | . . 1 . . . . . . . . . . . . . . . . . . . . . . . . . . . Scanalyzer Index 1 | . . . . . . . . . . . . . . . . . . . . . . . . . . . 1 . . Garrison Index 5 | . . . . . . . . . . . . . . . . . . 1 1 . . . . . . 1 1 . 1 Alert Level 2 | . 1 . 1 . . . . . . . . . . . . . . . . . . . . . . . . . . Unreport Threat 20 | . . . 1 . 1 . . . . . . . . 1 . . . 1 1 . 2 . 2 3 1 3 2 2 . Locate Traps 4 | . . . . . 1 . . . . . . . . . . . . 1 . . . . . . . 1 . 1 . Disarm Traps 2 | . . . . . . . . . . . . . . . 1 . . . . . . . . . . . . . 1 Reprogram Traps 3 | . . . . . . . . . . . . . . 2 . . . . 1 . . . . . . . . . . Dispatch Records 2 | . . 1 . . . . . . . . . . . . . . . . . . . . . . . . 1 . . Security Status 5 | . . . 1 . . . . . . . . . . 2 1 . . . . . . . . . . . . . 1 Surveillance Status 3 | . . . . . . . . . . . . . . . 2 . . . . . . . . . . . . 1 . Patrol Status 3 | . . . . . . . . . . . . . . . . . . . . . . . . 1 . . 1 . 1 Extermination Status 1 | . . . . . . . . . . . . . . . . . . . . . . . . . . . 1 . . Reinforcement Status 1 | . . . . . . . . . . . . . . . . . . . . . . . . 1 . . . . . Assault Status 1 | . 1 . . . . . . . . . . . . . . . . . . . . . . . . . . . . Recall Investigation 4 | . . . . . . . . . . . . . . . 1 . . 1 . . . . . . . 2 . . . Recall Extermination 6 | . . . . . . . . . . . . . . . . . . . 2 . . . . . . 1 3 . . Recall Reinforcements 5 | . . . . . . . . . . . . . . . 1 . . . . . 1 . . 1 . . 2 . . Recall Assault 4 | . 1 . . . . . . . . . . . . . 1 . . . . . 1 . . 1 . . . . . Hauler Manifests 3 | . 1 1 . . . . . . . . . . . . . . . . . . . . . . . . . 1 . Registered Components 6 | . . . . . 1 . . . . . . . . 1 1 . . . 1 . . . . 1 . . 1 . . Registered Prototypes 2 | . 1 . . . . . . . . . . . . . . . . . . . . . . 1 . . . . . Zone Layout 10 | . . . . . 2 . . . . . . . . . . . . 1 . . . . . . 1 2 3 . 1 Protovariant Controls 1 | . . . . . . . . . . . . . . . . . . . . . . . . 1 . . . . . Fabricator Hacks 6 | . . . . . . . . . . . . . . . . . . . 4 . . . 2 . . . . . . Network Status 1 | . . . . . . . . . . . . . . . . . . . 1 . . . . . . . . . . Load Schematic 2 | . . . . . . . . . . . . . . . . . . . 1 . . . 1 . . . . . . Build 3 | . . . . . . . . . . . . . . . . . . . 2 . . . 1 . . . . . . Repair Station Hacks 59 | . . . . . 10 . . 1 . . . 2 . 6 . . . . 4 . 9 . 10 1 4 5 2 2 3 Scan Component 33 | . . . . . 5 . . . . . . 2 . 3 . . . . 2 . 5 . 6 1 2 3 1 1 2 Repair 25 | . . . . . 5 . . . . . . . . 3 . . . . 2 . 4 . 4 . 2 2 1 1 1 Refit 1 | . . . . . . . . 1 . . . . . . . . . . . . . . . . . . . . . Recycling Unit Hacks 7 | . . . . . 1 . . . . . . . . . 2 . . . 4 . . . . . . . . . . Process 1 | . . . . . . . . . . . . . . . . . . . 1 . . . . . . . . . . Report Inventory 1 | . . . . . . . . . . . . . . . . . . . 1 . . . . . . . . . . Retrieve Matter 3 | . . . . . . . . . . . . . . . 1 . . . 2 . . . . . . . . . . Retrieve Components 2 | . . . . . 1 . . . . . . . . . 1 . . . . . . . . . . . . . . Scanalyzer 24 | . . 6 . . . . . . . . . . . 2 . . . . . . 2 . . 5 . 5 4 . . Insert Component 17 | . . 3 . . . . . . . . . . . 1 . . . . . . 2 . . 2 . 5 4 . . Analyze 7 | . . 3 . . . . . . . . . . . 1 . . . . . . . . . 3 . . . . . Garrison Access Hacks 12 | . . . 2 . 1 . . 1 . 1 . 2 . . . . . 1 2 . 2 . . . . . . . . Unlock Access 7 | . . . 1 . 1 . . 1 . 1 . 1 . . . . . . 1 . 1 . . . . . . . . Seal Access 1 | . . . . . . . . . . . . . . . . . . 1 . . . . . . . . . . . Coupler Status 4 | . . . 1 . . . . . . . . 1 . . . . . . 1 . 1 . . . . . . . . Unauthorized Hacks 51 | . . 2 3 . 1 . . 1 . 1 . 2 . 2 2 . . 1 4 . 3 . 2 3 2 6 7 3 6 Terminals 44 | . . 2 2 . 1 . . . . . . 1 . 2 1 . . 1 3 . 2 . 2 3 2 6 7 3 6 Assimilate 2 | . . . . . . . . . . . . . . . . . . . . . . . . . . 1 1 . . Botnet 42 | . . 2 2 . 1 . . . . . . 1 . 2 1 . . 1 3 . 2 . 2 3 2 5 6 3 6 Fabricators . | . . . . . . . . . . . . . . . . . . . . . . . . . . . . . . Repair Stations . | . . . . . . . . . . . . . . . . . . . . . . . . . . . . . . Recycling Units 1 | . . . . . . . . . . . . . . . 1 . . . . . . . . . . . . . . Mask 1 | . . . . . . . . . . . . . . . 1 . . . . . . . . . . . . . . Scanalyzers . | . . . . . . . . . . . . . . . . . . . . . . . . . . . . . . Garrison Access 6 | . . . 1 . . . . 1 . 1 . 1 . . . . . . 1 . 1 . . . . . . . . Restock 1 | . . . . . . . . . . . . 1 . . . . . . . . . . . . . . . . . Reprogram 2 | . . . . . . . . . . . . . . . . . . . 1 . 1 . . . . . . . . Eject 3 | . . . 1 . . . . 1 . 1 . . . . . . . . . . . . . . . . . . . Data Cores Recovered 2 | . . . . . . . . . . . . . . . . . . . . . . . . . . 1 . 1 . Used . | . . . . . . . . . . . . . . . . . . . . . . . . . . . . . . Hacking Detections 100 | . 2 5 1 . 8 . 1 2 . 1 . 4 . 7 6 . . 6 9 . 5 . 5 4 3 12 8 5 6 Full Trace Events 8 | . . 2 . . . . . . . . . 1 . 1 . . . . 1 . 1 . 1 1 . . . . . Feedback Events 2 | . . . . . . . . . . . . . . . . . . . . . 1 . . 1 . . . . . Corruption 2 | . . . . . . . . . . . . . . . . . . . . . 1 . . 1 . . . . . Feedback Blocked . | . . . . . . . . . . . . . . . . . . . . . . . . . . . . . . Robot Schematics Acquired 6 | . . . . . . . . . . . . . . 1 . . . . 1 . . . . 2 . 2 . . . Robots Built . | . . . . . . . . . . . . . . . . . . . . . . . . . . . . . . Authchips . | . . . . . . . . . . . . . . . . . . . . . . . . . . . . . . Time . | . . . . . . . . . . . . . . . . . . . . . . . . . . . . . . Total Robot Build Rating . | . . . . . . . . . . . . . . . . . . . . . . . . . . . . . . Part Schematics Acquired 48 | . . 3 . . . . . . . . . . . 2 1 . . 1 2 . 1 . . 29 . 6 1 1 1 Parts Built 4 | . . . . . . . . . . . . . . . . . . . 4 . . . . . . . . . . Authchips . | . . . . . . . . . . . . . . . . . . . . . . . . . . . . . . Time 212 | . . . . . . . . . . . . . . . . . . . 170 . . . 42 . . . . . . Total Part Build Rating 32 | . . . . . . . . . . . . . . . . . . . 32 . . . . . . . . . . Parts Repaired 24 | . . . . . 5 . . . . . . . . 3 . . . . 2 . 4 . 4 . 1 2 1 1 1 Time 1205 | . . . . . 226 . . . . . . . . 144 . . . . 108 . 162 . 221 . 176 54 54 24 36 Parts Recycled . | . . . . . . . . . . . . . . . . . . . . . . . . . . . . . . Recycled Matter 3 | . . . . . . . . . . . . . . . . . . . 3 . . . . . . . . . . Retrieved Matter 96 | . . . . . . . . . . . . . . . 93 . . . 3 . . . . . . . . . . Retrieved Components 10 | . . . . . 1 . . . . . . . . . 9 . . . . . . . . . . . . . . Parts Scanalyzed 7 | . . 3 . . . . . . . . . . . 1 . . . . . . 1 . . 2 . . . . . Part Schematics Acquired 6 | . . 3 . . . . . . . . . . . 1 . . . . . . . . . 2 . . . . . Parts Damaged 1 | . . . . . . . . . . . . . . 1 . . . . . . . . . . . . . . . Bothacking | -11 -10 -9 -8 -8 -8 -8 -8 -6 -6 -6 -6 -5 -5 -5 -5 -5 -5 -5 -4 -4 -4 -4 -3 -3 -2 -2 -2 -1 -1 ------------ Run | Scr Mat Mat Mat Gar Sto Gar Rec Fac Gar Fac Gar Fac Gar Fac Ext Cet Arc Hub Fac Gar Fac Gar Res Tes Res Qua Sec Acc Com Used RIF Installer 7 | . . . . 1 . 1 . . 1 . 1 . 1 . . . . . . 1 . 1 . . . . . . . Hotswap 1 | . . . . . . . . . . . . . . . . . . . . 1 . . . . . . . . . Threat Obfuscator 1 | . . . . . . . . . 1 . . . . . . . . . . . . . . . . . . . . Signal Jammer 1 | . . . . . . 1 . . . . . . . . . . . . . . . . . . . . . . . Watcher Feeds 1 | . . . . . . . . . . . . . 1 . . . . . . . . . . . . . . . . Alert ID Control 1 | . . . . . . . . . . . . . . . . . . . . . . 1 . . . . . . . Program Shield 1 | . . . . . . . . . . . 1 . . . . . . . . . . . . . . . . . . Robots Hacked 128 | . . . . . 2 . 3 8 9 1 13 5 14 5 10 1 3 6 3 6 1 3 5 16 1 4 4 1 4 Non-combat 43 | . . . . . 2 . 3 4 . . . 2 . 3 5 . 1 4 2 . . . 3 8 . 3 1 1 1 Combat 85 | . . . . . . . . 4 9 1 13 3 14 2 5 1 2 2 1 6 1 3 2 8 1 1 3 . 3 Robot Hacks Applied 151 | . . . . . 3 . 3 10 9 1 15 7 15 6 12 1 3 8 3 6 1 3 5 23 1 4 5 1 6 parse_system 8 | . . . . . 1 . . . . . 2 . 1 . . 1 . . . . . . . 2 . . . . 1 no_distress 2 | . . . . . . . . 1 . . . . . . . . . 1 . . . . . . . . . . . generate_echo 1 | . . . . . . . . . . . . . . . . . . 1 . . . . . . . . . . . find_chute 1 | . . . . . . . . . . . . 1 . . . . . . . . . . . . . . . . . ignore_repairs 8 | . . . . . . . . . . . . 1 . . 4 . . 1 . . . . . 2 . . . . . map_walls 2 | . . . . . . . . . . . . 1 . . . . . . 1 . . . . . . . . . . find_fabricator 1 | . . . . . . . . 1 . . . . . . . . . . . . . . . . . . . . . drop_inventory 6 | . . . . . . . . 1 . . . . . . . . . 2 . . . . 2 . . 1 . . . ignore_parts 5 | . . . . . . . 3 1 . . . . . . . . . 1 . . . . . . . . . . . purge_threat 3 | . . . . . . . . . . . . . . . . . . . . . . . . 1 . . . . 2 locate_traps 2 | . . . . . . . . . . . . . . . 1 . . . . . . . . 1 . . . . . map_route 3 | . . . . . . . . 1 . . . . . 1 . . . . . . . . . . . 1 . . . find_scanalyzer 1 | . . . . . . . . . . . . . . . . . . . . . . . . 1 . . . . . disable_scanner 3 | . . . . . . . . . . . . . . . . . . . . . . . . 2 . . 1 . . locate_prototypes 3 | . . . . . . . . . . . . . . . . . . . . . . . . 2 . . 1 . . report_schematics 1 | . . . . . . . . . . . . . . . . . . . . . . . . 1 . . . . . report_analyses 2 | . . . . . . . . . . . . . . . . . . . . . . . . 1 . . 1 . . find_garrison 3 | . . . . . . . . 1 . . . 1 . 1 . . . . . . . . . . . . . . . show_paths 1 | . . . . . . . . . . . . 1 . . . . . . . . . . . . . . . . . scatter_targeting 3 | . . . . . . . . . 2 . . . . . . . . . . 1 . . . . . . . . . disrupt_area 1 | . . . . . . . . . . . . . 1 . . . . . . . . . . . . . . . . amplify_resonance 10 | . . . . . . . . . . . 1 . . . 1 . . . . 1 . 1 1 4 . . . . 1 disable_weapons 5 | . . . . . . . . 2 . . 1 . 2 . . . . . . . . . . . . . . . . reboot_system 4 | . . . . . . . . . 3 . . . . . 1 . . . . . . . . . . . . . . overwrite_iff 17 | . . . . . . . . . 2 . 4 1 4 1 1 . 1 . . 3 . . . . . . . . . formatsys_low 16 | . . . . . 2 . . . . . . . . 1 1 . 1 . . . . . 1 4 . 2 2 1 1 formatsys_high 39 | . . . . . . . . 2 2 1 7 1 7 2 3 . 1 2 2 1 1 2 1 2 1 . . . 1 Manual 1 | . . . . . . . . . . . . . . . . . . . . . . . . . . . . . 1 Relay Couplers Released 113 | . . . 3 11 . 8 . 4 14 4 14 . 16 . . . . . . 13 . 18 . . . . 1 7 . Ejected 11 | . . . 3 . . . . 4 . 4 . . . . . . . . . . . . . . . . . . . Machine Destruction 99 | . . . . 11 . 8 . . 14 . 14 . 16 . . . . . . 13 . 18 . . . . 1 4 . Programmers 3 | . . . . . . . . . . . . . . . . . . . . . . . . . . . . 3 . Attached 39 | . . . . . 1 . . 3 4 1 7 1 7 1 1 1 1 1 1 2 . 2 2 . 1 . . 1 1 Fabnet Peak Effective % . | . . . . . . . . . . . . . . . . . . . . . . . . . . . . . . Robots Rewired 43 | . . . . . . . 23 . . . . . 7 . 13 . . . . . . . . . . . . . . Allies Hacked 6 | . . . . . . . . . . . . . . . . . . 1 2 . . . . 2 . . 1 . . Hacks Repelled . | . . . . . . . . . . . . . . . . . . . . . . . . . . . . . . Allies | -11 -10 -9 -8 -8 -8 -8 -8 -6 -6 -6 -6 -5 -5 -5 -5 -5 -5 -5 -4 -4 -4 -4 -3 -3 -2 -2 -2 -1 -1 -------- Run | Scr Mat Mat Mat Gar Sto Gar Rec Fac Gar Fac Gar Fac Gar Fac Ext Cet Arc Hub Fac Gar Fac Gar Res Tes Res Qua Sec Acc Com Total Allies 130 | . . . . . 2 . 23 2 4 1 11 2 18 4 30 . 3 2 4 4 1 2 2 6 1 2 3 1 2 Largest Group 28 | . . . . . 2 2 22 20 3 2 8 8 10 11 28 26 9 7 3 2 1 2 1 3 1 2 2 1 1 Highest-Rated Group 1021 | . . . . . 35 35 367 317 87 61 201 212 507 533 1021 973 435 300 249 94 49 98 137 227 64 87 84 35 51 Highest-Rated Ally 159 | . . . . . 23 23 34 41 32 32 32 41 68 68 159 159 152 60 137 49 49 49 137 137 64 62 62 35 51 Total Orders 53 | . . . . . 2 1 1 . . . 2 2 2 11 4 3 1 1 . . . . 2 6 . 3 7 1 4 STAY 19 | . . . . . . 1 . . . . 1 1 1 3 2 2 1 1 . . . . . 1 . . 3 . 2 FOLLOW 21 | . . . . . 1 . . . . . 1 1 1 5 2 1 . . . . . . 1 2 . 1 3 . 2 AID 12 | . . . . . 1 . . . . . . . . 3 . . . . . . . . 1 3 . 2 1 1 . PICKUP 1 | . . . . . . . 1 . . . . . . . . . . . . . . . . . . . . . . Ally Attacks 708 | . . . . . . . 80 72 13 . 49 25 65 49 55 120 17 44 22 9 4 31 19 5 5 14 9 . 1 Total Damage 17841 | . . . . . . . 656 1443 228 . 916 626 1801 1654 2141 2980 467 1089 1161 271 141 1241 363 218 249 150 . . 46 Kills 141 | . . . . . . . 12 15 2 . 6 6 12 15 16 22 2 15 4 3 1 6 3 . 1 . . . . Allies Corrupted 5 | . . . . . . . . . . . 1 . 1 . . . . . . . . . 1 1 . . 1 . . Allies Melted 2 | . . . . . . . . 1 . . . . . . . . . . . 1 . . . . . . . . . Intel | -11 -10 -9 -8 -8 -8 -8 -8 -6 -6 -6 -6 -5 -5 -5 -5 -5 -5 -5 -4 -4 -4 -4 -3 -3 -2 -2 -2 -1 -1 ------- Run | Scr Mat Mat Mat Gar Sto Gar Rec Fac Gar Fac Gar Fac Gar Fac Ext Cet Arc Hub Fac Gar Fac Gar Res Tes Res Qua Sec Acc Com Robot Analysis Total 21 | . . . . . . . . . . . . . . . 7 . . 5 4 . . . . 1 . 2 1 1 . Derelict Logs Recovered . | . . . . . . . . . . . . . . . . . . . . . . . . . . . . . . Drone Launches . | . . . . . . . . . . . . . . . . . . . . . . . . . . . . . . Drone Recoveries . | . . . . . . . . . . . . . . . . . . . . . . . . . . . . . . Exploration | -11 -10 -9 -8 -8 -8 -8 -8 -6 -6 -6 -6 -5 -5 -5 -5 -5 -5 -5 -4 -4 -4 -4 -3 -3 -2 -2 -2 -1 -1 ------------- Run | Scr Mat Mat Mat Gar Sto Gar Rec Fac Gar Fac Gar Fac Gar Fac Ext Cet Arc Hub Fac Gar Fac Gar Res Tes Res Qua Sec Acc Com Turns Passed 33141 | 79 466 770 350 955 1086 995 521 994 791 212 1092 262 1165 921 787 470 357 911 1202 1875 1117 1482 1301 1875 708 3256 3691 1053 2397 Spaces Moved 16965 | 65 280 488 126 433 398 488 212 507 586 192 863 200 841 598 512 269 194 447 593 999 489 765 487 809 327 1576 1650 515 1056 Core 19 | 10 . . . . . . . 8 . . . . . . . . . . . . . . . . . . . . 1 Treads 12603 | . 230 292 126 433 398 488 212 301 . . . . . . . 241 194 447 593 999 489 765 487 809 327 1576 1648 515 1033 Legs 4067 | 55 50 . . . . . . 142 586 192 863 200 841 598 512 28 . . . . . . . . . . . . . Wheels . | . . . . . . . . . . . . . . . . . . . . . . . . . . . . . . Hover 22 | . . . . . . . . 22 . . . . . . . . . . . . . . . . . . . . . Flight 252 | . . 196 . . . . . 34 . . . . . . . . . . . . . . . . . . . . 22 Fastest Speed 29 | 50 120 29 160 160 160 160 160 35 106 106 106 106 106 106 106 106 160 160 160 160 152 160 160 160 152 152 152 152 35 Average Speed 144 | 109 152 107 160 160 161 160 160 146 106 106 106 106 106 106 106 154 160 160 160 160 158 160 161 160 160 159 158 152 149 Slowest Speed 250 | 120 160 175 160 160 240 160 160 240 106 106 106 106 106 106 106 160 160 240 160 160 240 240 240 160 225 160 250 152 250 Overloaded Moves . | . . . . . . . . . . . . . . . . . . . . . . . . . . . . . . Propulsion Burnouts . | . . . . . . . . . . . . . . . . . . . . . . . . . . . . . . Robots Hopped 3 | . . . . . . . . 2 . . . . . . . . . . . . . . . . . . . 1 . Cave-ins Triggered 2 | . . . . . . . . 1 . . . . . . . . . . . . . 1 . . . . . . . Teleports 1 | . . . . . . . . . . . . . . . . . . . . . . . . . . . 1 . . Spacefolds 1 | . . . . . . . . . . . . . . . . . . . . . . . . . . . 1 . . Exploration Rate (%) 49 | 5 49 62 17 68 51 43 45 14 66 4 77 8 88 17 74 87 89 72 20 89 15 86 14 87 15 93 77 14 41 Regions Visited 29 Branch Regions 10 Pre-discovered Areas . | . . . . . . . . . . . . . . . . . . . . . . . . . . . . . . Known Exits Taken 16 | . 1 1 1 . 1 . . 1 . 1 . 1 . 1 . . . 1 1 . 1 . 1 1 1 . 1 1 . Unknown Exits Taken 6 | 1 . . . . . . 1 . . . . . . . 1 1 1 . . . . . . . . 1 . . . Scrap Searched . | . . . . . . . . . . . . . . . . . . . . . . . . . . . . . . Spaces Dug 88 | . . . . . . . . 1 . . . . 3 . 5 . . 11 . 2 . 1 6 12 . 6 34 3 4 Terrain Destroyed 1249 | . . . . 12 . 6 3 7 5 . 7 1 62 1 14 2 . 324 41 99 58 71 21 97 6 125 121 54 112 Melee . | . . . . . . . . . . . . . . . . . . . . . . . . . . . . . . Projectile 435 | . . . . 3 . . . 7 5 . 3 1 8 1 14 2 . 29 29 24 9 15 21 56 6 38 81 17 66 AOE 814 | . . . . 9 . 6 3 . . . 4 . 54 . . . . 295 12 75 49 56 . 41 . 87 40 37 46 Terrain Rammed . | . . . . . . . . . . . . . . . . . . . . . . . . . . . . . . Walls Destroyed . | . . . . . . . . . . . . . . . . . . . . . . . . . . . . . . Machines Disabled . | . . . . . . . . . . . . . . . . . . . . . . . . . . . . . . Actions | -11 -10 -9 -8 -8 -8 -8 -8 -6 -6 -6 -6 -5 -5 -5 -5 -5 -5 -5 -4 -4 -4 -4 -3 -3 -2 -2 -2 -1 -1 --------- Run | Scr Mat Mat Mat Gar Sto Gar Rec Fac Gar Fac Gar Fac Gar Fac Ext Cet Arc Hub Fac Gar Fac Gar Res Tes Res Qua Sec Acc Com Total 22737 | 70 309 601 197 567 726 614 386 665 709 199 1012 240 1051 868 702 315 239 574 777 1150 766 955 888 1150 462 1976 2281 674 1614 Wait 2921 | . 14 18 15 36 245 28 121 11 30 . 73 22 89 235 114 15 30 36 113 25 201 90 307 139 99 162 238 83 332 Move 16923 | 64 279 487 125 431 397 486 211 502 584 191 861 199 839 597 511 268 193 446 592 997 489 763 486 808 326 1575 1648 512 1056 Hop 3 | . . . . . . . . 2 . . . . . . . . . . . . . . . . . . . 1 . Pick Up 246 | . 6 4 4 11 5 21 2 16 11 . 11 1 13 2 . 4 2 6 10 21 9 20 5 9 . 17 16 5 15 Fast Attach 281 | 6 3 12 5 8 10 10 . 35 3 3 6 1 2 7 2 4 3 6 8 11 12 7 12 15 6 11 35 10 28 Attach 131 | . . 2 3 4 2 7 1 6 2 . 5 2 6 1 1 4 2 9 5 1 4 3 4 3 2 10 24 5 13 Detach 49 | . . . . . . 1 . 1 . . 1 . . . . 3 . 3 2 1 5 1 . 3 1 1 18 2 6 Swap 17 | . . . 1 . 1 . . . . 1 . . . . . . . . . 1 1 3 1 3 . 1 4 . . Drop 350 | . 2 12 8 17 2 18 5 17 11 3 15 1 11 6 . 8 5 10 10 18 14 26 11 21 4 21 30 7 37 Fire 1717 | . 4 66 36 60 58 43 5 64 63 1 40 14 76 18 64 9 4 58 37 74 30 41 62 148 24 178 264 49 127 Melee 57 | . . . . . 6 . 41 10 . . . . . . . . . . . . . . . . . . . . . Ram . | . . . . . . . . . . . . . . . . . . . . . . . . . . . . . . Kick 2 | . . . . . . . . 1 . . . . . 1 . . . . . . . . . . . . . . . Crush 5 | . 1 . . . . . . . . . . . . . . . . . . . 1 . . 1 . . 2 . . Escape Stasis 15 | . . . . . . . . . 5 . . . 5 . 5 . . . . . . . . . . . . . . Rewire 20 | . . . . . . . . . . . . . 10 1 5 . . . . 1 . 1 . . . . 2 . . Trap . | . . . . . . . . . . . . . . . . . . . . . . . . . . . . . . Miscellaneous . | . . . . . . . . . . . . . . . . . . . . . . . . . . . . . . Route ------- -11/Scrapyard -10/Materials (discovered 3 exits: *Mat / *Min x2) -9/Materials (discovered 3 exits: *Mat / *Min x2) -8/Materials -8/Garrison (discovered 2 exits: *Sto x2) -8/Storage (discovered 2 exits: *Rec / Gar) -8/Garrison -8/Recycling -6/Factory -6/Garrison (discovered 3 exits: *Fac x3) -6/Factory -6/Garrison (discovered 3 exits: *Fac x3) -5/Factory (discovered 2 exits: *Upp / Gar) -5/Garrison (discovered 3 exits: *Fac x3) -5/Factory (discovered 6 exits: *Fac x2 / *Upp x2 / *Ext x2) -5/Extension (discovered 2 exits: *Fac / *Cet) -5/Cetus (discovered 3 exits: *Fac x2 / *Arc) -5/Archives (discovered 3 exits: *Fac / *Hub x2) -5/Hub_04(d) (discovered 4 exits: *Fac x4) -4/Factory (discovered 5 exits: *Res / Upp x2 / Arm / Gar) -4/Garrison (discovered 2 exits: *Fac x2) -4/Factory (discovered 4 exits: Upp x2 / Arm / Gar) -4/Garrison (discovered 3 exits: *Res x3) -3/Research (discovered 2 exits: *Tes x2) -3/Testing -2/Research (discovered 3 exits: *Acc / *Qua x2) -2/Quarantine (discovered 2 exits: *Acc / *Sec) -2/Section 7 -1/Access -1/Command 0b10 Command History --------- Turn | Location | Event 18 | -11/Scrapyard | Discovered new exit (range 15) 80 | -11/Scrapyard | Entered Materials 306 | -10/Materials | Build established: Mutant 439 | -10/Materials | Discovered new exit (range 15) 484 | -10/Materials | Identified exit to Mines 527 | -10/Materials | Discovered exit to Mines (range 5) 530 | -10/Materials | Discovered new exit (range 11) 544 | -10/Materials | Identified exit to Materials 546 | -10/Materials | Entered another Materials area 546 | -9/Materials | Evolved 2 slots: Propulsion x1, Utility x1 771 | -9/Materials | Discovered new exit (range 12) 1065 | -9/Materials | Discovered new exit (range 15) 1089 | -9/Materials | Identified exit to Materials 1232 | -9/Materials | Identified exit to Mines 1316 | -9/Materials | Entered another Materials area 1316 | -8/Materials | Evolved 2 slots: Utility x1, Weapon x1 1532 | -8/Materials | Garrison activated, responded to threat 1660 | -8/Materials | Identified exit to Garrison 1666 | -8/Materials | Entered Garrison 1730 | -8/Garrison | Triggered checkpoint 1771 | -8/Garrison | Garrison Relay disabled 1856 | -8/Garrison | Spotted B-75 Beast 1881 | -8/Garrison | Destroyed B-75 Beast 1970 | -8/Garrison | Triggered checkpoint 2089 | -8/Garrison | Discovered new exit (range 15) 2156 | -8/Garrison | Triggered checkpoint 2187 | -8/Garrison | Garrison Relay disabled 2223 | -8/Garrison | Build established: Scavenger-Tank 2264 | -8/Garrison | Triggered checkpoint 2366 | -8/Garrison | Triggered checkpoint 2398 | -8/Garrison | Discovered new exit (range 13) 2436 | -8/Garrison | Installed Relay Interface Framework 2544 | -8/Garrison | Triggered checkpoint 2555 | -8/Garrison | Garrison Relay disabled 2621 | -8/Garrison | Entered Storage 2640 | -8/Storage | Build established: Hacker-Tank 2702 | -8/Storage | Repaired Imp. Medium Treads 2736 | -8/Storage | Repaired Imp. Treads 2787 | -8/Storage | Repaired Imp. Medium Treads 2934 | -8/Storage | Used back door to open Recycling access 2934 | -8/Storage | Discovered new exit (range 5) 2960 | -8/Storage | Build established: Bothacker-Tank 3121 | -8/Storage | Identified exit to Garrison 3316 | -8/Storage | Repaired Imp. Cooling System 3367 | -8/Storage | Repaired Imp. Medium Treads 3421 | -8/Storage | First assault squad dispatched 3536 | -8/Storage | Lost 3 parts (3w) 3707 | -8/Storage | Entered Garrison 3707 | -8/Garrison | Accompanied by 2 allies 3742 | -8/Garrison | Triggered checkpoint 3784 | -8/Garrison | Triggered checkpoint 3818 | -8/Garrison | Core integrity fell below 50% 3907 | -8/Garrison | Garrison Relay disabled 4090 | -8/Garrison | Lost 8 parts (2p2n2u2w) 4251 | -8/Garrison | Discovered new exit (range 14) 4285 | -8/Garrison | Expanded RIF knowledge: Signal Jamming 4316 | -8/Garrison | Triggered checkpoint 4346 | -8/Garrison | Garrison Relay disabled 4425 | -8/Garrison | Build established: Scavenger-Tank 4440 | -8/Garrison | Triggered checkpoint 4702 | -8/Garrison | Entered Recycling 4703 | -8/Recycling | Joined Warlord attack on 0b10 via Recycling 4716 | -8/Recycling | Spotter reported a threat 4720 | -8/Recycling | Spotter reported a threat 4720 | -8/Recycling | Spotter reported a threat 4726 | -8/Recycling | Spotter reported a threat 4755 | -8/Recycling | Spotter reported a threat 4781 | -8/Recycling | Spotter reported a threat 4795 | -8/Recycling | Spotter reported a threat 4799 | -8/Recycling | Spotter reported a threat 4808 | -8/Recycling | Spotter reported a threat 4861 | -8/Recycling | Spotter reported a threat 4869 | -8/Recycling | Spotter reported a threat 4883 | -8/Recycling | Spotter reported a threat 4908 | -8/Recycling | Spotter reported a threat 4909 | -8/Recycling | Spotter reported a threat 4914 | -8/Recycling | Spotter reported a threat 4922 | -8/Recycling | Spotter reported a threat 4970 | -8/Recycling | Spotter reported a threat 4971 | -8/Recycling | Spotter reported a threat 4975 | -8/Recycling | Spotter reported a threat 5010 | -8/Recycling | Spotter reported a threat 5013 | -8/Recycling | Spotter reported a threat 5024 | -8/Recycling | Spotter reported a threat 5064 | -8/Recycling | Spotter reported a threat 5066 | -8/Recycling | Spotter reported a threat 5084 | -8/Recycling | Discovered new exit (range 15) 5101 | -8/Recycling | Spotter reported a threat 5101 | -8/Recycling | Spotter reported a threat 5117 | -8/Recycling | Spotter reported a threat 5119 | -8/Recycling | Spotter reported a threat 5147 | -8/Recycling | Build established: Commander-Mutant 5154 | -8/Recycling | Spotter reported a threat 5157 | -8/Recycling | Spotter reported a threat 5170 | -8/Recycling | Spotter reported a threat 5172 | -8/Recycling | Spotter reported a threat 5210 | -8/Recycling | Spotter reported a threat 5223 | -8/Recycling | Entered Factory 5223 | -6/Factory | Accompanied by 20 allies 5223 | -6/Factory | Evolved 4 slots: Power x1, Utility x3 5230 | -6/Factory | 1 allies followed out of Recycling 5362 | -6/Factory | Crushed by falling debris 5573 | -6/Factory | Search patrols dispatched 5698 | -6/Factory | Build established: Bothacker-Mutant 5863 | -6/Factory | Cargo convoy interrupted 5923 | -6/Factory | Search patrols dispatched 5974 | -6/Factory | Core integrity fell below 50% 5998 | -6/Factory | Lost 16 parts (2p7n3u4w) 6199 | -6/Factory | Identified exit to Garrison 6217 | -6/Factory | Entered Garrison 6217 | -6/Garrison | Accompanied by 1 ally 6258 | -6/Garrison | Triggered checkpoint 6286 | -6/Garrison | Garrison Relay disabled 6348 | -6/Garrison | Triggered checkpoint 6383 | -6/Garrison | Destroyed 7 combat bots 6408 | -6/Garrison | Discovered new exit (range 14) 6472 | -6/Garrison | Triggered checkpoint 6487 | -6/Garrison | Garrison Relay disabled 6564 | -6/Garrison | Triggered checkpoint 6611 | -6/Garrison | Discovered new exit (range 9) 6664 | -6/Garrison | Triggered checkpoint 6703 | -6/Garrison | Discovered new exit (range 12) 6721 | -6/Garrison | Expanded RIF knowledge: Threat Obfuscation 6746 | -6/Garrison | Triggered checkpoint 6780 | -6/Garrison | Garrison Relay disabled 6838 | -6/Garrison | Triggered checkpoint 7008 | -6/Garrison | Entered Factory 7008 | -6/Factory | Accompanied by 1 ally 7201 | -6/Factory | Identified exit to Garrison 7220 | -6/Factory | Entered Garrison 7220 | -6/Garrison | Accompanied by 2 allies 7262 | -6/Garrison | Triggered checkpoint 7276 | -6/Garrison | Garrison Relay disabled 7412 | -6/Garrison | Triggered checkpoint 7446 | -6/Garrison | Triggered checkpoint 7494 | -6/Garrison | Triggered checkpoint 7531 | -6/Garrison | Garrison Relay disabled 7582 | -6/Garrison | Discovered new exit (range 9) 7640 | -6/Garrison | Triggered checkpoint 7672 | -6/Garrison | Triggered checkpoint 7747 | -6/Garrison | Discovered new exit (range 15) 7769 | -6/Garrison | Expanded RIF knowledge: Program Shield 7868 | -6/Garrison | Triggered checkpoint 7951 | -6/Garrison | Discovered new exit (range 15) 7966 | -6/Garrison | Triggered checkpoint 7997 | -6/Garrison | Garrison Relay disabled 8081 | -6/Garrison | Build established: Botlord-Mutant 8312 | -6/Garrison | Entered Factory 8312 | -5/Factory | Accompanied by 8 allies 8312 | -5/Factory | Evolved 2 slots: Utility x2 8520 | -5/Factory | Identified exit to Garrison 8532 | -5/Factory | Garrison activated, responded to threat 8550 | -5/Factory | Discovered new exit (range 15) 8574 | -5/Factory | Entered Garrison 8574 | -5/Garrison | Accompanied by 4 allies 8626 | -5/Garrison | Triggered checkpoint 8643 | -5/Garrison | Triggered checkpoint 8682 | -5/Garrison | Garrison Relay disabled 8760 | -5/Garrison | Triggered checkpoint 8810 | -5/Garrison | Discovered new exit (range 10) 8876 | -5/Garrison | Triggered checkpoint 8897 | -5/Garrison | Garrison Relay disabled 8970 | -5/Garrison | Triggered checkpoint 9015 | -5/Garrison | Discovered new exit (range 12) 9054 | -5/Garrison | Triggered checkpoint 9143 | -5/Garrison | Garrison Relay disabled 9247 | -5/Garrison | Phase Generator disabled 9360 | -5/Garrison | Triggered checkpoint 9398 | -5/Garrison | Triggered checkpoint 9419 | -5/Garrison | Discovered new exit (range 14) 9438 | -5/Garrison | Expanded RIF knowledge: Watcher Feeds 9476 | -5/Garrison | Garrison Relay disabled 9739 | -5/Garrison | Entered Factory 9739 | -5/Factory | Accompanied by 10 allies 9761 | -5/Factory | Discovered new exit (range 80) 9918 | -5/Factory | Identified exit to Upper Caves 9918 | -5/Factory | Identified exit to Extension 9982 | -5/Factory | Discovered new exit (range 6) 10183 | -5/Factory | Repaired Broken Hvy. Hardcell Cannon 10227 | -5/Factory | Identified exit to Factory 10238 | -5/Factory | Repaired Enh. Biometal Leg 10262 | -5/Factory | Repaired Remote Datajack 10660 | -5/Factory | Entered Extension 10660 | -5/Extension | Accompanied by 9 allies 10682 | -5/Extension | Disrupted transfer network 10695 | -5/Extension | Rescued a captive Derelict 10695 | -5/Extension | Rescued a captive Derelict 10811 | -5/Extension | Rescued a captive Derelict 11010 | -5/Extension | Rescued a captive Derelict 11012 | -5/Extension | Rescued a captive Derelict 11060 | -5/Extension | Rescued A7 11136 | -5/Extension | Rescued a captive Derelict 11137 | -5/Extension | Rescued a captive Derelict 11147 | -5/Extension | Rescued a captive Derelict 11148 | -5/Extension | Rescued a captive Derelict 11152 | -5/Extension | Rescued a captive Derelict 11156 | -5/Extension | Rescued a captive Derelict 11316 | -5/Extension | Discovered exit to Factory (range 10) 11317 | -5/Extension | Discovered new exit (range 6) 11447 | -5/Extension | Entered Cetus 11447 | -5/Cetus | Accompanied by 26 allies (A7) 11452 | -5/Cetus | Acquired a Cetus Manufacturing Module code from A7 11469 | -5/Cetus | Spotted Cetus Guard 11469 | -5/Cetus | Spotted Cetus Guard 11470 | -5/Cetus | Spotted Cetus Guard 11470 | -5/Cetus | Spotted Cetus Guard 11480 | -5/Cetus | Allies destroyed Cetus Guard 11480 | -5/Cetus | Allies destroyed Cetus Guard 11481 | -5/Cetus | Destroyed Cetus Guard 11488 | -5/Cetus | Allies destroyed Cetus Guard 11492 | -5/Cetus | Cetus Manufacturing Module disabled 11551 | -5/Cetus | Discovered exit to Factory (range 15) 11700 | -5/Cetus | Failed to start Cetus Manufacturing Module 11717 | -5/Cetus | Escorted A7 to Cetus Mainframe 11737 | -5/Cetus | Discovered new exit (range 16) 11790 | -5/Cetus | Discovered exit to Factory (range 27) 11803 | -5/Cetus | Spotted Cetus Guard 11803 | -5/Cetus | Spotted Cetus Guard 11804 | -5/Cetus | Spotted Cetus Guard 11811 | -5/Cetus | Spotted Cetus Guard 11813 | -5/Cetus | Allies destroyed Cetus Guard 11818 | -5/Cetus | Allies destroyed Cetus Guard 11820 | -5/Cetus | Allies destroyed Cetus Guard 11822 | -5/Cetus | Destroyed Cetus Guard 11825 | -5/Cetus | Met Revision 17 11917 | -5/Cetus | Entered Archives 11917 | -5/Archives | Accompanied by 9 allies (A7) 11922 | -5/Archives | Received a hacking code to weaken MAIN.C 11993 | -5/Archives | Unable to access archive contents 12011 | -5/Archives | Unable to access archive contents 12014 | -5/Archives | Discovered new exit (range 16) 12033 | -5/Archives | Discovered new exit (range 16) 12056 | -5/Archives | Discovered exit to Factory (range 15) 12070 | -5/Archives | Unable to access archive contents 12274 | -5/Archives | Entered Hub_04(d) 12274 | -5/Hub_04(d) | Accompanied by 7 allies 12907 | -5/Hub_04(d) | Disrupted transfer network 13129 | -5/Hub_04(d) | Network Hub disabled 13137 | -5/Hub_04(d) | Network Hub disabled 13140 | -5/Hub_04(d) | Spotted Lightning 13147 | -5/Hub_04(d) | Spotted Lightning 13148 | -5/Hub_04(d) | Spotted Lightning 13155 | -5/Hub_04(d) | System corruption reached 10% 13174 | -5/Hub_04(d) | First assault squad dispatched 13185 | -5/Hub_04(d) | Entered Factory 13185 | -4/Factory | Evolved 2 slots: Propulsion x1, Weapon x1 13451 | -4/Factory | Identified exit to DSF 13736 | -4/Factory | Fabricated Mic. Antimatter Reactor (x2) 13809 | -4/Factory | Identified exit to Upper Caves 13809 | -4/Factory | Identified exit to Armory 13974 | -4/Factory | Discovered new exit (range 15) 14004 | -4/Factory | Garrison activated, responded to threat 14067 | -4/Factory | Identified exit to Garrison 14211 | -4/Factory | Fabricated Biometal Medium Treads? 14242 | -4/Factory | Repaired Hvy. Hardcell Cannon 14298 | -4/Factory | Repaired Centrium Heavy Treads 14323 | -4/Factory | Build established: Botlord-Gunner 14387 | -4/Factory | Entered Garrison 14395 | -4/Garrison | Expanded RIF knowledge: Hotswap 14489 | -4/Garrison | Garrison Relay disabled 14556 | -4/Garrison | Triggered checkpoint 14650 | -4/Garrison | Triggered checkpoint 14654 | -4/Garrison | Triggered checkpoint 14678 | -4/Garrison | Triggered checkpoint 14721 | -4/Garrison | Destroyed 10 combat bots 14814 | -4/Garrison | Triggered checkpoint 14878 | -4/Garrison | Garrison Relay disabled 15135 | -4/Garrison | Phase Generator disabled 15260 | -4/Garrison | Triggered checkpoint 15360 | -4/Garrison | Discovered new exit (range 13) 15453 | -4/Garrison | Garrison Relay disabled 15750 | -4/Garrison | Discovered new exit (range 10) 15784 | -4/Garrison | Triggered checkpoint 15815 | -4/Garrison | Garrison Relay disabled 16262 | -4/Garrison | Entered Factory 16373 | -4/Factory | Build established: Hacker-Tank 16899 | -4/Factory | Repaired Broken Centrium Heavy Treads 16937 | -4/Factory | Repaired Centrium Medium Armor Plating 16974 | -4/Factory | Repaired Hvy. Hardcell Cannon 17116 | -4/Factory | Destroyed 8 combat bots 17218 | -4/Factory | Repaired Broken Centrium Heavy Treads 17378 | -4/Factory | Identified exit to Garrison 17379 | -4/Factory | Entered Garrison 17379 | -4/Garrison | Accompanied by 1 ally 17387 | -4/Garrison | Expanded RIF knowledge: Alert ID Control 17482 | -4/Garrison | Triggered checkpoint 17510 | -4/Garrison | Garrison Relay disabled 17637 | -4/Garrison | Phase Generator disabled 17647 | -4/Garrison | Spotted B-86 Titan 17691 | -4/Garrison | Spotted B-86 Titan 17721 | -4/Garrison | Allies destroyed B-86 Titan 17734 | -4/Garrison | Triggered checkpoint 17737 | -4/Garrison | Crushed by falling debris 17737 | -4/Garrison | System corruption reached 10% 17740 | -4/Garrison | Triggered checkpoint 17836 | -4/Garrison | Discovered new exit (range 10) 17876 | -4/Garrison | Triggered checkpoint 17887 | -4/Garrison | Garrison Relay disabled 18065 | -4/Garrison | Discovered new exit (range 9) 18091 | -4/Garrison | Garrison Relay disabled 18134 | -4/Garrison | Triggered checkpoint 18318 | -4/Garrison | Triggered checkpoint 18364 | -4/Garrison | Triggered checkpoint 18490 | -4/Garrison | Triggered checkpoint 18502 | -4/Garrison | Garrison Relay disabled 18565 | -4/Garrison | Discovered new exit (range 15) 18781 | -4/Garrison | Build established: Botlord-Mutant 18861 | -4/Garrison | Entered Research 18861 | -3/Research | Accompanied by 1 ally 18861 | -3/Research | Evolved 2 slots: Utility x2 18899 | -3/Research | Spotted B-86 Titan 19129 | -3/Research | Repaired Broken Hvy. Hardcell Cannon 19358 | -3/Research | Identified exit to Testing 19491 | -3/Research | Repaired Broken Hvy. Hardcell Cannon 19554 | -3/Research | Repaired Centrium Heavy Treads 19609 | -3/Research | Repaired Centrium Medium Armor Plating 19693 | -3/Research | Destroyed 7 combat bots 19754 | -3/Research | Cargo convoy interrupted 19788 | -3/Research | Found Adv. Kinecellerator 19811 | -3/Research | Found Exp. Thermic Cannon 20162 | -3/Research | Entered Testing 20162 | -3/Testing | Accompanied by 1 ally 20240 | -3/Testing | Found Prototype Device 20240 | -3/Testing | Identified AEGIS Remote Shield 20286 | -3/Testing | Identified exit to Research 20390 | -3/Testing | Found Exp. Target Analyzer 20442 | -3/Testing | Spotted PD-RGV3ZFIVW9 20466 | -3/Testing | Destroyed PD-RGV3ZFIVW9 20544 | -3/Testing | Spotted Striker 20545 | -3/Testing | Protovariant out of control (PL-2IQWFUUCNN) 20545 | -3/Testing | Unleashed a protovariant (PL-2IQWFUUCNN) 20708 | -3/Testing | Spotted Investigator 20708 | -3/Testing | Scanned by Researcher 20715 | -3/Testing | Destroyed Investigator 20820 | -3/Testing | P-80 Master assimilated allied Artificer 8a 21064 | -3/Testing | Build established: Botlord-Gunner 21131 | -3/Testing | Found Prototype Energy Cannon 21144 | -3/Testing | Found Prototype Energy Cannon 21168 | -3/Testing | Identified Potential Cannon 21177 | -3/Testing | Identified Imp. Potential Cannon 21424 | -3/Testing | Garrison activated, responded to threat 21523 | -3/Testing | Destroyed 14 combat bots 21652 | -3/Testing | Found Prototype Protection 21652 | -3/Testing | Identified Centrium Heavy Armor Plating 21804 | -3/Testing | Found Prototype Protection 21804 | -3/Testing | Identified Med. Regenerative Plating 21808 | -3/Testing | Found Hvy. Regenerative Plating 21815 | -3/Testing | Found Prototype Protection 21815 | -3/Testing | Identified SHELL Armor 22037 | -3/Testing | Entered Research 22037 | -2/Research | Accompanied by 1 ally 22037 | -2/Research | Evolved 2 slots: Power x1, Utility x1 22048 | -2/Research | Identified exit to Quarantine 22197 | -2/Research | Spotted B-90 Cyclops 22219 | -2/Research | Destroyed B-90 Cyclops 22361 | -2/Research | Repaired Adv. Remote Datajack 22654 | -2/Research | Discovered new exit (range 12) 22745 | -2/Research | Entered Quarantine 22745 | -2/Quarantine | Accompanied by 1 ally 22755 | -2/Quarantine | Found Alien Artifact 22763 | -2/Quarantine | Found Alien Artifact 22771 | -2/Quarantine | Found Alien Artifact 22771 | -2/Quarantine | Identified Dimensional Node Initializer 22771 | -2/Quarantine | Initialized slip node 22778 | -2/Quarantine | Found Dimensional Node Initializer 22805 | -2/Quarantine | Identified exit to Access 22967 | -2/Quarantine | Found Alien Artifact 23012 | -2/Quarantine | Identified Phase Redirector 23012 | -2/Quarantine | Identified Transdimensional Reconstructor 23012 | -2/Quarantine | Identified Hpw. Transdimensional Reconstructor 23119 | -2/Quarantine | Found Alien Artifact 23201 | -2/Quarantine | Identified Core Reset Matrix 23307 | -2/Quarantine | Repaired Hvy. Hardcell Cannon 23530 | -2/Quarantine | First assault squad dispatched 23877 | -2/Quarantine | Found Matter Drive 23923 | -2/Quarantine | Found Subatomic Replicator 24481 | -2/Quarantine | Build established: Bothacker-Tank 24786 | -2/Quarantine | Found Hpw. Transdimensional Reconstructor 24940 | -2/Quarantine | Build established: Bothacker-Mutant 25170 | -2/Quarantine | Found Alien Artifact 25264 | -2/Quarantine | Identified Phase Armor 25474 | -2/Quarantine | Repaired Adv. Cooling System 25573 | -2/Quarantine | Spotted Fortress 25730 | -2/Quarantine | Destroyed Fortress 25766 | -2/Quarantine | System corruption reached 10% 25993 | -2/Quarantine | Discovered new exit (range 6) 26001 | -2/Quarantine | Entered Section 7 26266 | -2/Section 7 | Found Prototype Device 26266 | -2/Section 7 | Identified Exp. Shock Absorption System 26760 | -2/Section 7 | Discovered exit to Access (range 28) 26816 | -2/Section 7 | Found Spacefold Activator 26925 | -2/Section 7 | Assembled infested ambush trap array 26951 | -2/Section 7 | Spotted S7 Guard 26981 | -2/Section 7 | Spotted S7 Guard 26991 | -2/Section 7 | Destroyed S7 Guard 27029 | -2/Section 7 | Destroyed 14 combat bots 27037 | -2/Section 7 | Destroyed S7 Guard 27063 | -2/Section 7 | Found Alien Artifact 27063 | -2/Section 7 | Identified Core Regenerator 27063 | -2/Section 7 | Used Core Regenerator, restored core integrity (+203) 27179 | -2/Section 7 | Initialized slip node 27384 | -2/Section 7 | Destroyed 7 combat bots 27784 | -2/Section 7 | Spotted B-90 Cyclops 27882 | -2/Section 7 | Found Alien Artifact 28087 | -2/Section 7 | Identified Integrated Reactor 28088 | -2/Section 7 | Used Subatomic Replicator to create Alien Artifact 28093 | -2/Section 7 | Identified Supercharged Integrated Reactor 28093 | -2/Section 7 | Installed Supercharged Integrated Reactor, increased core energy generation (+15) 28206 | -2/Section 7 | Repaired Hvy. Hardcell Cannon 28299 | -2/Section 7 | Found Alien Artifact 28438 | -2/Section 7 | Identified Navigation Efficiency Matrix 28482 | -2/Section 7 | Spotted Alpha 7 28487 | -2/Section 7 | Spotted Alpha 7 28520 | -2/Section 7 | Destroyed Alpha 7 28548 | -2/Section 7 | Destroyed Alpha 7 28601 | -2/Section 7 | Found Alien Artifact 28707 | -2/Section 7 | Identified Integrated Dissipator 28708 | -2/Section 7 | Installed Integrated Dissipator, increased core heat dissipation (+20) 28781 | -2/Section 7 | Spotted B-99 Colossus 28877 | -2/Section 7 | Destroyed B-99 Colossus 29080 | -2/Section 7 | Found LRC Boosters 29080 | -2/Section 7 | Installed LRC Boosters, increased mass support (+10) 29089 | -2/Section 7 | Found LRC Energy Well 29089 | -2/Section 7 | Installed LRC Energy Well, increased energy storage capacity (+250) 29092 | -2/Section 7 | Found LRC Boosters 29092 | -2/Section 7 | Installed LRC Boosters, increased mass support (+10) 29183 | -2/Section 7 | Found Integrated Dissipator 29183 | -2/Section 7 | Installed Integrated Dissipator, increased core heat dissipation (+20) 29186 | -2/Section 7 | Found Integrated Dissipator 29186 | -2/Section 7 | Installed Integrated Dissipator, increased core heat dissipation (+20) 29189 | -2/Section 7 | Found Integrated Dissipator 29189 | -2/Section 7 | Installed Integrated Dissipator, increased core heat dissipation (+20) 29410 | -2/Section 7 | Spotted Executioner 29411 | -2/Section 7 | Spotted Executioner 29414 | -2/Section 7 | Destroyed Executioner 29424 | -2/Section 7 | Destroyed Executioner 29451 | -2/Section 7 | Found Prototype Processor 29451 | -2/Section 7 | Identified Exp. Core Analyzer 29536 | -2/Section 7 | Found Transdimensional Reconstructor 29569 | -2/Section 7 | Found Alien Energy Cannon 29569 | -2/Section 7 | Identified Drained L-Cannon 29683 | -2/Section 7 | Warped through subspace to slip node 29692 | -2/Section 7 | Entered Access 29692 | -1/Access | Evolved 2 slots: Utility x2 29732 | -1/Access | Build established: Hacker-Gunner 29808 | -1/Access | Spotted B-99 Colossus 30029 | -1/Access | Repaired Adv. Heavy Siege Treads 30134 | -1/Access | Lost 4 parts (1p3u) 30195 | -1/Access | Found Exp. Core Analyzer 30406 | -1/Access | Identified exit to Command 30469 | -1/Access | Build established: Botlord-Mutant 30745 | -1/Access | Entered Command 30804 | -1/Command | Build established: Botlord-Gunner 30890 | -1/Command | Found Unknown Device 30890 | -1/Command | Identified Antimissile System 30977 | -1/Command | System corruption reached 10% 31185 | -1/Command | Build established: Botlord-Tank 31409 | -1/Command | Spotted B-99 Colossus 32141 | -1/Command | Build established: Botlord-Gunner 32365 | -1/Command | Repaired Hvy. Hardcell Cannon 32625 | -1/Command | Spotted Combat Programmer 32626 | -1/Command | Spotted Combat Programmer 32636 | -1/Command | Destroyed Combat Programmer 32643 | -1/Command | Spotted M Guard 32648 | -1/Command | Spotted M Guard 32653 | -1/Command | Destroyed Combat Programmer 32677 | -1/Command | Destroyed M Guard 32718 | -1/Command | Destroyed M Guard 32718 | -1/Command | All MAIN.C guards destroyed 32838 | -1/Command | Met MAIN.C 32840 | -1/Command | Hacked MAIN.C using A7's code 33109 | -1/Command | Destroyed MAIN.C Shell 33112 | -1/Command | MAIN.C activated Command garrisons 33131 | -1/Command | Released all parts (19) 33142 | -1/Command | Interfaced with 0b10 Conduit 33142 | *** | Assimilated 0b10! Last Messages --------------- 33131_ Adv. Focal Shield crushed and broken. 33131_ Released Helical Railgun. 33131_ Helical Railgun crushed and broken. 33132_ MAIN.C reaction time slowed by virus. 33132_ Acquired Cesium-ion Thruster. 33133_ MAIN.C reaction time slowed by virus. 33133_ Acquired 1 matter. 33134_ MAIN.C reaction time slowed by virus. 33135_ P-80 Master resets P-80 Master, system corruption cleaned. 33135_ Dropped Lgt. Quantum Reactor. 33135_ MAIN.C reaction time slowed by virus. 33135_ Acquired Hpw. Transdimensional Reconstructor. 33136_ MAIN.C reaction time slowed by virus. 33137_ C-30 ARC bursts open, deploying its payload. 33137_ L-61 Swordsman unfolds itself. 33137_ G-73 Enforcer unfolds itself. 33138_ Knocked back. 33142_ Interfacing with system... 33142_ Overriding active MAIN.C lock. [Achievement: MAIN.CPP] Map ----- +----------------------------------------------------+ | T################################# | | #######"""################################## | | #######"""################################## | | #### ################################# | | #### ################################# | | #### ################################# | | ""## #### ################################# | | ""## ############################################ | | ""## ############################################ | | #### ############################################ | | #### ############################################ | | ### ########################################### | | ### ########################################### | | ### ########################################### | | ### #######""""""" """" ############### | | ####+#########"" "" ############### | | #####""""" "" ############### | | #####""""""""""" ; % | | "" #####" " """ ; | | """" #####"" """""" ; | | """" #####"" """""" ############### | | "" ##### " """""" ############### | | ##### " "" ############### | | ##### " " ""############### | | ##############""""""""" """""""############### | | ##########"" @"""""""""############### | | ########## """""""""""############### | | ########## " " " " ############### | | ########## " " " " ############### | | # """ " " " """" " ############### | | + """ """ " " """" ############### | | # """ " " " " ############### | | # ###### """""""""" " ############### | | # ###### " """ " """"""""############### | | # ###### """ " " " ############### | | # ########################################## | | ##### ########################################## | | ##### ########################################## | | ##### ########################################## | | ########################################## | | ########################################## | | ########################################## | | ################################################## | | ######################################### | | ######################################### | | " ######################################### | | "T""" ######################################### | | """"" ######################################### | | ######################################### | | ######################################### | +----------------------------------------------------+ Best States ------------- Heat Dissipation 170 Energy Generation 80 Energy Capacity 1320 Matter Stores 300 Matter Capacity 600 Sight Range 22 Robot Scan Range 15 Terrain Scan Range 20 Terrain Scan Density 10 Armor Coverage 1800 Resistance: KI 50 Resistance: TH 50 Resistance: EX 20 Resistance: EM 20 Resistance: I 20 Resistance: S 20 Resistance: P 20 Weapon Shielding 66 Point Defense Rating 240 Weapon Cycling 15 Evasion (%) 64 Targeting Accuracy 6 Target Analysis 10 Core Analysis 12 Armor Integrity Analysis 40 Recoil Reduction 4 Matter Filtering 30 Kinecelleration 50 Offensive Hacking 24 Defensive Hacking 22 Relay Coupler Types 5 Relay Coupler Value 156 Item Schematics ----------------- Lrg. Matter Pod | -9/Materials | Scanalyzed Imp. VTOL Module | -9/Materials | Scanalyzed Lgt. Armor Plating | -9/Materials | Scanalyzed Imp. Remote Datajack | -5/Factory | Hacked Hvy. Hardcell Cannon | -5/Factory | Scanalyzed Hvy. Linear Accelerator | -5/Extension | Hacked Imp. Remote Force Field | -5/Hub_04(d) | Hacked Adv. Recalibrator | -4/Factory | Hacked Biometal Medium Treads | -4/Factory | Hacked Imp. Heavy Siege Treads | -4/Factory | Hacked Tiamat Missile Launcher | -3/Testing | Reported Enh. Force Rifle | -3/Testing | Reported Enh. Coil Gun | -3/Testing | Reported Imp. Thermal Defense Suite | -3/Testing | Reported Q-thruster | -3/Testing | Reported Mni. Smartbomb Launcher | -3/Testing | Reported Imp. Matter Neutralizer | -3/Testing | Reported Kinetic Spear | -3/Testing | Reported Imp. Gyrokinetic Inverter | -3/Testing | Reported Adv. KE Penetrator | -3/Testing | Reported Prc. Phase Gun | -3/Testing | Archive Adv. Kinecellerator | -3/Testing | Scanalyzed Exp. Matter Compressor | -3/Testing | Scanalyzed Cld. Phase Gun | -3/Testing | Archive Electron Diverter | -3/Testing | Archive Nanosword | -3/Testing | Archive Hvy. Neutron Cannon | -3/Testing | Archive Adv. Powered Armor | -3/Testing | Hacked Coolant Network | -3/Testing | Archive Centrium Medium Armor Plating | -3/Testing | Archive Adv. Matter Compressor | -3/Testing | Archive Imp. Diametric Drive | -3/Testing | Archive Hvy. Proton Cannon | -3/Testing | Archive Exp. Thermal Shield | -3/Testing | Archive Lgt. Regenerative Plating | -3/Testing | Hacked Hvy. Regenerative Plating | -3/Testing | Hacked Centrium Heavy Treads | -3/Testing | Archive Thunder Hammer | -3/Testing | Archive Exp. Energy Well | -3/Testing | Archive Cld. Q-thruster | -2/Quarantine | Archive Exp. Focal Shield | -2/Quarantine | Archive Imp. KE Penetrator | -2/Quarantine | Archive Gravity Flail | -2/Quarantine | Archive Imp. Matter Compressor | -2/Quarantine | Archive Exp. Field Recycling Unit | -2/Quarantine | Archive Adv. Heavy Siege Treads | -2/Section 7 | Hacked Biometal Heavy Treads | -1/Access | Hacked Enh. Nova Cannon | -1/Command | Hacked Robot Schematics ------------------ B-48 Gladiator | -5/Factory | Hacked R-10 Processor | -4/Factory | Hacked M-30 Cleanser | -3/Testing | Archive W-44 Eye | -3/Testing | Archive K-01 Serf | -2/Quarantine | Archive A-15 Conveyor | -2/Quarantine | Archive Fabricated ------------ Mic. Antimatter Reactor | x2 | -4/Factory | Preloaded Biometal Medium Treads | x2 | -4/Factory Alien Tech Used ----------------- Dimensional Node Initializer Phase Redirector Matter Drive Phase Armor Spacefold Activator Core Regenerator Subatomic Replicator Supercharged Integrated Reactor Integrated Dissipator LRC Boosters LRC Energy Well Drained L-Cannon Transdimensional Reconstructor Achievements -------------- MAIN.CPP Poison In The Code Challenges ------------ None Game ------ Seed StorageLaserBeamcaster Manual? 0 Play Time 08:06:16 Cumulative 200.1 hours Start 2022.04.29 @ 19:14:23 End 2022.05.01 @ 01:12:43 Sessions 5 Manual Loads 0 Difficulty Adventurer Special Mode None Game No. 44 Rogue 7 Adventurer 36 Explorer 1 Win Type 4 Total 12 Types 4/0/3/4/1/0/0/0/0 Lore% 57 Gallery% 68 Achievement% 68 Wizard Run 0 Options --------- ASCII 0 Keyboard 0 Movement Numpad Keybinds 0 Fullscreen 1 Font 18/SmallcapsGlow Map View 76x50 Tactical HUD 1 Map Filters NONE Filters NONE Steam 1 RUN: 56940563-2793-4aec-8422-bea2126c3489